{"text_format":"1","workbook":"xlsx","n_sheets":6,"sheets":["入力用紙","繁殖状況票","アンケート調査用紙","調査用紙","入力制限シート","Sheet3"],"not_rendered":{"charts":0,"images":0,"macros":1,"external_links":0,"defined_names":0,"comments":0,"pivot_tables":1},"unopened":[],"bounds":{"document_bytes":16777216,"sheet_cells":100000,"rows_first":2000,"rows_last":500,"rows_between":2000,"halvings":0,"cell_chars":16384,"cell_head_chars":4096},"cells_cut":0,"cells_raw":0,"read":"whole","date_system":"1900"}

{"sheet":"入力用紙","index":0,"n_rows":256,"n_cols":8,"rows_kept":256,"cut":false,"hidden":false,"merged":[[0,0,0,7],[7,3,7,5],[5,4,5,7]]}
["全国鳥類繁殖分布調査　調査用紙"]
["青く塗った部分に入力ください"]
["調査ルート番号"]
["調査年月日",null,null,"年",null,"月",null,"日"]
["調査時刻",null,null,"～",null,null,"天候"]
["調査責任者",null,null,"ほか"]
[]
[null,null,null,"個体数"]
["調査種別","時刻","種名","50ｍ内","以遠","幼","合計","繁殖行動"]
[null,null,null,null,null,null,{"$f":"IF(SUM(D10:F10)=0,\"\",SUM(D10:F10))","v":""},"さえずり・餌運搬・"]
[null,null,null,null,null,null,{"$f":"IF(SUM(D11:F11)=0,\"\",SUM(D11:F11))","v":""},"さえずり・餌運搬・"]
[null,null,null,null,null,null,"","さえずり・餌運搬・"]
[null,null,null,null,null,null,"","さえずり・餌運搬・"]
[null,null,null,null,null,null,"","さえずり・餌運搬・"]
[null,null,null,null,null,null,"","さえずり・餌運搬・"]
[null,null,null,null,null,null,"","さえずり・餌運搬・"]
[null,null,null,null,null,null,"","さえずり・餌運搬・"]
[null,null,null,null,null,null,"","さえずり・餌運搬・"]
[null,null,null,null,null,null,"","さえずり・餌運搬・"]
[null,null,null,null,null,null,"","さえずり・餌運搬・"]
[null,null,null,null,null,null,"","さえずり・餌運搬・"]
[null,null,null,null,null,null,"","さえずり・餌運搬・"]
[null,null,null,null,null,null,"","さえずり・餌運搬・"]
[null,null,null,null,null,null,"","さえずり・餌運搬・"]
[null,null,null,null,null,null,"","さえずり・餌運搬・"]
[null,null,null,null,null,null,"","さえずり・餌運搬・"]
[null,null,null,null,null,null,"","さえずり・餌運搬・"]
[null,null,null,null,null,null,"","さえずり・餌運搬・"]
[null,null,null,null,null,null,"","さえずり・餌運搬・"]
[null,null,null,null,null,null,"","さえずり・餌運搬・"]
[null,null,null,null,null,null,"","さえずり・餌運搬・"]
[null,null,null,null,null,null,"","さえずり・餌運搬・"]
[null,null,null,null,null,null,"","さえずり・餌運搬・"]
[null,null,null,null,null,null,"","さえずり・餌運搬・"]
[null,null,null,null,null,null,"","さえずり・餌運搬・"]
[null,null,null,null,null,null,"","さえずり・餌運搬・"]
[null,null,null,null,null,null,"","さえずり・餌運搬・"]
[null,null,null,null,null,null,"","さえずり・餌運搬・"]
[null,null,null,null,null,null,"","さえずり・餌運搬・"]
[null,null,null,null,null,null,"","さえずり・餌運搬・"]
[null,null,null,null,null,null,"","さえずり・餌運搬・"]
[null,null,null,null,null,null,"","さえずり・餌運搬・"]
[null,null,null,null,null,null,"","さえずり・餌運搬・"]
[null,null,null,null,null,null,"","さえずり・餌運搬・"]
[null,null,null,null,null,null,"","さえずり・餌運搬・"]
[null,null,null,null,null,null,"","さえずり・餌運搬・"]
[null,null,null,null,null,null,"","さえずり・餌運搬・"]
[null,null,null,null,null,null,"","さえずり・餌運搬・"]
[null,null,null,null,null,null,"","さえずり・餌運搬・"]
[null,null,null,null,null,null,"","さえずり・餌運搬・"]
[null,null,null,null,null,null,"","さえずり・餌運搬・"]
[null,null,null,null,null,null,"","さえずり・餌運搬・"]
[null,null,null,null,null,null,"","さえずり・餌運搬・"]
[null,null,null,null,null,null,"","さえずり・餌運搬・"]
[null,null,null,null,null,null,"","さえずり・餌運搬・"]
[null,null,null,null,null,null,"","さえずり・餌運搬・"]
[null,null,null,null,null,null,"","さえずり・餌運搬・"]
[null,null,null,null,null,null,"","さえずり・餌運搬・"]
[null,null,null,null,null,null,"","さえずり・餌運搬・"]
[null,null,null,null,null,null,"","さえずり・餌運搬・"]
[null,null,null,null,null,null,"","さえずり・餌運搬・"]
[null,null,null,null,null,null,"","さえずり・餌運搬・"]
[null,null,null,null,null,null,"","さえずり・餌運搬・"]
[null,null,null,null,null,null,"","さえずり・餌運搬・"]
[null,null,null,null,null,null,"","さえずり・餌運搬・"]
[null,null,null,null,null,null,"","さえずり・餌運搬・"]
[null,null,null,null,null,null,"","さえずり・餌運搬・"]
[null,null,null,null,null,null,"","さえずり・餌運搬・"]
[null,null,null,null,null,null,"","さえずり・餌運搬・"]
[null,null,null,null,null,null,"","さえずり・餌運搬・"]
[null,null,null,null,null,null,"","さえずり・餌運搬・"]
[null,null,null,null,null,null,"","さえずり・餌運搬・"]
[null,null,null,null,null,null,"","さえずり・餌運搬・"]
[null,null,null,null,null,null,"","さえずり・餌運搬・"]
[null,null,null,null,null,null,{"$f":"IF(SUM(D75:F75)=0,\"\",SUM(D75:F75))","v":""},"さえずり・餌運搬・"]
[null,null,null,null,null,null,"","さえずり・餌運搬・"]
[null,null,null,null,null,null,"","さえずり・餌運搬・"]
[null,null,null,null,null,null,"","さえずり・餌運搬・"]
[null,null,null,null,null,null,"","さえずり・餌運搬・"]
[null,null,null,null,null,null,"","さえずり・餌運搬・"]
[null,null,null,null,null,null,"","さえずり・餌運搬・"]
[null,null,null,null,null,null,"","さえずり・餌運搬・"]
[null,null,null,null,null,null,"","さえずり・餌運搬・"]
[null,null,null,null,null,null,"","さえずり・餌運搬・"]
[null,null,null,null,null,null,"","さえずり・餌運搬・"]
[null,null,null,null,null,null,"","さえずり・餌運搬・"]
[null,null,null,null,null,null,"","さえずり・餌運搬・"]
[null,null,null,null,null,null,"","さえずり・餌運搬・"]
[null,null,null,null,null,null,"","さえずり・餌運搬・"]
[null,null,null,null,null,null,"","さえずり・餌運搬・"]
[null,null,null,null,null,null,"","さえずり・餌運搬・"]
[null,null,null,null,null,null,"","さえずり・餌運搬・"]
[null,null,null,null,null,null,"","さえずり・餌運搬・"]
[null,null,null,null,null,null,"","さえずり・餌運搬・"]
[null,null,null,null,null,null,"","さえずり・餌運搬・"]
[null,null,null,null,null,null,"","さえずり・餌運搬・"]
[null,null,null,null,null,null,"","さえずり・餌運搬・"]
[null,null,null,null,null,null,"","さえずり・餌運搬・"]
[null,null,null,null,null,null,"","さえずり・餌運搬・"]
[null,null,null,null,null,null,"","さえずり・餌運搬・"]
[null,null,null,null,null,null,"","さえずり・餌運搬・"]
[null,null,null,null,null,null,"","さえずり・餌運搬・"]
[null,null,null,null,null,null,"","さえずり・餌運搬・"]
[null,null,null,null,null,null,"","さえずり・餌運搬・"]
[null,null,null,null,null,null,"","さえずり・餌運搬・"]
[null,null,null,null,null,null,"","さえずり・餌運搬・"]
[null,null,null,null,null,null,"","さえずり・餌運搬・"]
[null,null,null,null,null,null,"","さえずり・餌運搬・"]
[null,null,null,null,null,null,"","さえずり・餌運搬・"]
[null,null,null,null,null,null,"","さえずり・餌運搬・"]
[null,null,null,null,null,null,"","さえずり・餌運搬・"]
[null,null,null,null,null,null,"","さえずり・餌運搬・"]
[null,null,null,null,null,null,"","さえずり・餌運搬・"]
[null,null,null,null,null,null,"","さえずり・餌運搬・"]
[null,null,null,null,null,null,"","さえずり・餌運搬・"]
[null,null,null,null,null,null,"","さえずり・餌運搬・"]
[null,null,null,null,null,null,"","さえずり・餌運搬・"]
[null,null,null,null,null,null,"","さえずり・餌運搬・"]
[null,null,null,null,null,null,"","さえずり・餌運搬・"]
[null,null,null,null,null,null,"","さえずり・餌運搬・"]
[null,null,null,null,null,null,"","さえずり・餌運搬・"]
[null,null,null,null,null,null,"","さえずり・餌運搬・"]
[null,null,null,null,null,null,"","さえずり・餌運搬・"]
[null,null,null,null,null,null,"","さえずり・餌運搬・"]
[null,null,null,null,null,null,{"$f":"IF(SUM(D125:F125)=0,\"\",SUM(D125:F125))","v":""},"さえずり・餌運搬・"]
[null,null,null,null,null,null,"","さえずり・餌運搬・"]
[null,null,null,null,null,null,"","さえずり・餌運搬・"]
[null,null,null,null,null,null,"","さえずり・餌運搬・"]
[null,null,null,null,null,null,"","さえずり・餌運搬・"]
[null,null,null,null,null,null,"","さえずり・餌運搬・"]
[null,null,null,null,null,null,"","さえずり・餌運搬・"]
[null,null,null,null,null,null,"","さえずり・餌運搬・"]
[null,null,null,null,null,null,"","さえずり・餌運搬・"]
[null,null,null,null,null,null,"","さえずり・餌運搬・"]
[null,null,null,null,null,null,"","さえずり・餌運搬・"]
[null,null,null,null,null,null,"","さえずり・餌運搬・"]
[null,null,null,null,null,null,"","さえずり・餌運搬・"]
[null,null,null,null,null,null,"","さえずり・餌運搬・"]
[null,null,null,null,null,null,"","さえずり・餌運搬・"]
[null,null,null,null,null,null,"","さえずり・餌運搬・"]
[null,null,null,null,null,null,"","さえずり・餌運搬・"]
[null,null,null,null,null,null,"","さえずり・餌運搬・"]
[null,null,null,null,null,null,"","さえずり・餌運搬・"]
[null,null,null,null,null,null,"","さえずり・餌運搬・"]
[null,null,null,null,null,null,{"$f":"IF(SUM(D145:F145)=0,\"\",SUM(D145:F145))","v":""},"さえずり・餌運搬・"]
[null,null,null,null,null,null,"","さえずり・餌運搬・"]
[null,null,null,null,null,null,"","さえずり・餌運搬・"]
[null,null,null,null,null,null,"","さえずり・餌運搬・"]
[null,null,null,null,null,null,"","さえずり・餌運搬・"]
[null,null,null,null,null,null,"","さえずり・餌運搬・"]
[null,null,null,null,null,null,"","さえずり・餌運搬・"]
[null,null,null,null,null,null,"","さえずり・餌運搬・"]
[null,null,null,null,null,null,"","さえずり・餌運搬・"]
[null,null,null,null,null,null,"","さえずり・餌運搬・"]
[null,null,null,null,null,null,"","さえずり・餌運搬・"]
[null,null,null,null,null,null,"","さえずり・餌運搬・"]
[null,null,null,null,null,null,"","さえずり・餌運搬・"]
[null,null,null,null,null,null,"","さえずり・餌運搬・"]
[null,null,null,null,null,null,"","さえずり・餌運搬・"]
[null,null,null,null,null,null,"","さえずり・餌運搬・"]
[null,null,null,null,null,null,"","さえずり・餌運搬・"]
[null,null,null,null,null,null,"","さえずり・餌運搬・"]
[null,null,null,null,null,null,"","さえずり・餌運搬・"]
[null,null,null,null,null,null,"","さえずり・餌運搬・"]
[null,null,null,null,null,null,"","さえずり・餌運搬・"]
[null,null,null,null,null,null,{"$f":"IF(SUM(D166:F166)=0,\"\",SUM(D166:F166))","v":""},"さえずり・餌運搬・"]
[null,null,null,null,null,null,"","さえずり・餌運搬・"]
[null,null,null,null,null,null,"","さえずり・餌運搬・"]
[null,null,null,null,null,null,"","さえずり・餌運搬・"]
[null,null,null,null,null,null,"","さえずり・餌運搬・"]
[null,null,null,null,null,null,"","さえずり・餌運搬・"]
[null,null,null,null,null,null,"","さえずり・餌運搬・"]
[null,null,null,null,null,null,"","さえずり・餌運搬・"]
[null,null,null,null,null,null,"","さえずり・餌運搬・"]
[null,null,null,null,null,null,"","さえずり・餌運搬・"]
[null,null,null,null,null,null,"","さえずり・餌運搬・"]
[null,null,null,null,null,null,"","さえずり・餌運搬・"]
[null,null,null,null,null,null,"","さえずり・餌運搬・"]
[null,null,null,null,null,null,"","さえずり・餌運搬・"]
[null,null,null,null,null,null,"","さえずり・餌運搬・"]
[null,null,null,null,null,null,"","さえずり・餌運搬・"]
[null,null,null,null,null,null,"","さえずり・餌運搬・"]
[null,null,null,null,null,null,"","さえずり・餌運搬・"]
[null,null,null,null,null,null,"","さえずり・餌運搬・"]
[null,null,null,null,null,null,"","さえずり・餌運搬・"]
[null,null,null,null,null,null,"","さえずり・餌運搬・"]
[null,null,null,null,null,null,"","さえずり・餌運搬・"]
[null,null,null,null,null,null,"","さえずり・餌運搬・"]
[null,null,null,null,null,null,"","さえずり・餌運搬・"]
[null,null,null,null,null,null,"","さえずり・餌運搬・"]
[null,null,null,null,null,null,"","さえずり・餌運搬・"]
[null,null,null,null,null,null,"","さえずり・餌運搬・"]
[null,null,null,null,null,null,"","さえずり・餌運搬・"]
[null,null,null,null,null,null,"","さえずり・餌運搬・"]
[null,null,null,null,null,null,"","さえずり・餌運搬・"]
[null,null,null,null,null,null,"","さえずり・餌運搬・"]
[null,null,null,null,null,null,"","さえずり・餌運搬・"]
[null,null,null,null,null,null,"","さえずり・餌運搬・"]
[null,null,null,null,null,null,"","さえずり・餌運搬・"]
[null,null,null,null,null,null,"","さえずり・餌運搬・"]
[null,null,null,null,null,null,"","さえずり・餌運搬・"]
[null,null,null,null,null,null,"","さえずり・餌運搬・"]
[null,null,null,null,null,null,"","さえずり・餌運搬・"]
[null,null,null,null,null,null,"","さえずり・餌運搬・"]
[null,null,null,null,null,null,"","さえずり・餌運搬・"]
[null,null,null,null,null,null,"","さえずり・餌運搬・"]
[null,null,null,null,null,null,"","さえずり・餌運搬・"]
[null,null,null,null,null,null,"","さえずり・餌運搬・"]
[null,null,null,null,null,null,"","さえずり・餌運搬・"]
[null,null,null,null,null,null,"","さえずり・餌運搬・"]
[null,null,null,null,null,null,"","さえずり・餌運搬・"]
[null,null,null,null,null,null,"","さえずり・餌運搬・"]
[null,null,null,null,null,null,"","さえずり・餌運搬・"]
[null,null,null,null,null,null,"","さえずり・餌運搬・"]
[null,null,null,null,null,null,"","さえずり・餌運搬・"]
[null,null,null,null,null,null,"","さえずり・餌運搬・"]
[null,null,null,null,null,null,"","さえずり・餌運搬・"]
[null,null,null,null,null,null,"","さえずり・餌運搬・"]
[null,null,null,null,null,null,"","さえずり・餌運搬・"]
[null,null,null,null,null,null,"","さえずり・餌運搬・"]
[null,null,null,null,null,null,"","さえずり・餌運搬・"]
[null,null,null,null,null,null,"","さえずり・餌運搬・"]
[null,null,null,null,null,null,"","さえずり・餌運搬・"]
[null,null,null,null,null,null,"","さえずり・餌運搬・"]
[null,null,null,null,null,null,"","さえずり・餌運搬・"]
[null,null,null,null,null,null,"","さえずり・餌運搬・"]
[null,null,null,null,null,null,"","さえずり・餌運搬・"]
[null,null,null,null,null,null,"","さえずり・餌運搬・"]
[null,null,null,null,null,null,"","さえずり・餌運搬・"]
[null,null,null,null,null,null,"","さえずり・餌運搬・"]
[null,null,null,null,null,null,"","さえずり・餌運搬・"]
[null,null,null,null,null,null,"","さえずり・餌運搬・"]
[null,null,null,null,null,null,"","さえずり・餌運搬・"]
[null,null,null,null,null,null,"","さえずり・餌運搬・"]
[null,null,null,null,null,null,"","さえずり・餌運搬・"]
[null,null,null,null,null,null,"","さえずり・餌運搬・"]
[null,null,null,null,null,null,"","さえずり・餌運搬・"]
[null,null,null,null,null,null,"","さえずり・餌運搬・"]
[null,null,null,null,null,null,"","さえずり・餌運搬・"]
[null,null,null,null,null,null,"","さえずり・餌運搬・"]
[null,null,null,null,null,null,"","さえずり・餌運搬・"]
[null,null,null,null,null,null,"","さえずり・餌運搬・"]
[null,null,null,null,null,null,"","さえずり・餌運搬・"]
[null,null,null,null,null,null,"","さえずり・餌運搬・"]
[null,null,null,null,null,null,"","さえずり・餌運搬・"]
[null,null,null,null,null,null,"","さえずり・餌運搬・"]
[null,null,null,null,null,null,"","さえずり・餌運搬・"]
[null,null,null,null,null,null,"","さえずり・餌運搬・"]
[null,null,null,null,null,null,"","さえずり・餌運搬・"]
[null,null,null,null,null,null,"","さえずり・餌運搬・"]
[null,null,null,null,null,null,"","さえずり・餌運搬・"]
[null,null,null,null,null,null,"","さえずり・餌運搬・"]
[null,null,null,null,null,null,"","さえずり・餌運搬・"]
[null,null,null,null,null,null,"","さえずり・餌運搬・"]
[null,null,null,null,null,null,"","さえずり・餌運搬・"]
[null,null,null,null,null,null,"","さえずり・餌運搬・"]

{"sheet":"繁殖状況票","index":1,"n_rows":129,"n_cols":9,"rows_kept":129,"cut":false,"hidden":false,"merged":[]}
["調査コース","調査年月日","調査時刻","天候","調査責任者","ほか"]
[{"$f":"入力用紙!C3","v":0},{"$f":"入力用紙!C4*10000+入力用紙!E4*100+入力用紙!G4","v":0},{"$f":"入力用紙!C5&\"-\"&入力用紙!E5","v":"-"},{"$f":"入力用紙!H5","v":0},{"$f":"入力用紙!C6","v":0},{"$f":"入力用紙!E6","v":0}]
[null,null,"青く塗った部分に入力ください"]
[null,null,"データ"]
["調査種別","種名","合計 / 50ｍ内","合計 / 以遠","合計 / 幼","合計 / 合計","繁殖区分","観察コード","繁殖ランク"]
["(空白)","(空白)",null,null,null,0,null,{"$f":"IF(G6=\"\",\"\",VLOOKUP(G6,入力制限シート!A$7:C$33,2,FALSE))","v":""},{"$f":"IF(G6=\"\",\"\",VLOOKUP(G6,入力制限シート!A$7:C$33,3,FALSE))","v":""}]
["(空白) 集計",null,null,null,null,0,null,{"$f":"IF(G7=\"\",\"\",VLOOKUP(G7,入力制限シート!A$7:C$33,2,FALSE))","v":""},{"$f":"IF(G7=\"\",\"\",VLOOKUP(G7,入力制限シート!A$7:C$33,3,FALSE))","v":""}]
["総計",null,null,null,null,0,null,{"$f":"IF(G8=\"\",\"\",VLOOKUP(G8,入力制限シート!A$7:C$33,2,FALSE))","v":""},{"$f":"IF(G8=\"\",\"\",VLOOKUP(G8,入力制限シート!A$7:C$33,3,FALSE))","v":""}]
[null,null,null,null,null,null,null,{"$f":"IF(G9=\"\",\"\",VLOOKUP(G9,入力制限シート!A$7:C$33,2,FALSE))","v":""},{"$f":"IF(G9=\"\",\"\",VLOOKUP(G9,入力制限シート!A$7:C$33,3,FALSE))","v":""}]
[null,null,null,null,null,null,null,{"$f":"IF(G10=\"\",\"\",VLOOKUP(G10,入力制限シート!A$7:C$33,2,FALSE))","v":""},{"$f":"IF(G10=\"\",\"\",VLOOKUP(G10,入力制限シート!A$7:C$33,3,FALSE))","v":""}]
[null,null,null,null,null,null,null,{"$f":"IF(G11=\"\",\"\",VLOOKUP(G11,入力制限シート!A$7:C$33,2,FALSE))","v":""},{"$f":"IF(G11=\"\",\"\",VLOOKUP(G11,入力制限シート!A$7:C$33,3,FALSE))","v":""}]
[null,null,null,null,null,null,null,{"$f":"IF(G12=\"\",\"\",VLOOKUP(G12,入力制限シート!A$7:C$33,2,FALSE))","v":""},{"$f":"IF(G12=\"\",\"\",VLOOKUP(G12,入力制限シート!A$7:C$33,3,FALSE))","v":""}]
[null,null,null,null,null,null,null,{"$f":"IF(G13=\"\",\"\",VLOOKUP(G13,入力制限シート!A$7:C$33,2,FALSE))","v":""},{"$f":"IF(G13=\"\",\"\",VLOOKUP(G13,入力制限シート!A$7:C$33,3,FALSE))","v":""}]
[null,null,null,null,null,null,null,{"$f":"IF(G14=\"\",\"\",VLOOKUP(G14,入力制限シート!A$7:C$33,2,FALSE))","v":""},{"$f":"IF(G14=\"\",\"\",VLOOKUP(G14,入力制限シート!A$7:C$33,3,FALSE))","v":""}]
[null,null,null,null,null,null,null,{"$f":"IF(G15=\"\",\"\",VLOOKUP(G15,入力制限シート!A$7:C$33,2,FALSE))","v":""},{"$f":"IF(G15=\"\",\"\",VLOOKUP(G15,入力制限シート!A$7:C$33,3,FALSE))","v":""}]
[null,null,null,null,null,null,null,{"$f":"IF(G16=\"\",\"\",VLOOKUP(G16,入力制限シート!A$7:C$33,2,FALSE))","v":""},{"$f":"IF(G16=\"\",\"\",VLOOKUP(G16,入力制限シート!A$7:C$33,3,FALSE))","v":""}]
[null,null,null,null,null,null,null,{"$f":"IF(G17=\"\",\"\",VLOOKUP(G17,入力制限シート!A$7:C$33,2,FALSE))","v":""},{"$f":"IF(G17=\"\",\"\",VLOOKUP(G17,入力制限シート!A$7:C$33,3,FALSE))","v":""}]
[null,null,null,null,null,null,null,{"$f":"IF(G18=\"\",\"\",VLOOKUP(G18,入力制限シート!A$7:C$33,2,FALSE))","v":""},{"$f":"IF(G18=\"\",\"\",VLOOKUP(G18,入力制限シート!A$7:C$33,3,FALSE))","v":""}]
[null,null,null,null,null,null,null,{"$f":"IF(G19=\"\",\"\",VLOOKUP(G19,入力制限シート!A$7:C$33,2,FALSE))","v":""},{"$f":"IF(G19=\"\",\"\",VLOOKUP(G19,入力制限シート!A$7:C$33,3,FALSE))","v":""}]
[null,null,null,null,null,null,null,{"$f":"IF(G20=\"\",\"\",VLOOKUP(G20,入力制限シート!A$7:C$33,2,FALSE))","v":""},{"$f":"IF(G20=\"\",\"\",VLOOKUP(G20,入力制限シート!A$7:C$33,3,FALSE))","v":""}]
[null,null,null,null,null,null,null,{"$f":"IF(G21=\"\",\"\",VLOOKUP(G21,入力制限シート!A$7:C$33,2,FALSE))","v":""},{"$f":"IF(G21=\"\",\"\",VLOOKUP(G21,入力制限シート!A$7:C$33,3,FALSE))","v":""}]
[null,null,null,null,null,null,null,{"$f":"IF(G22=\"\",\"\",VLOOKUP(G22,入力制限シート!A$7:C$33,2,FALSE))","v":""},{"$f":"IF(G22=\"\",\"\",VLOOKUP(G22,入力制限シート!A$7:C$33,3,FALSE))","v":""}]
[null,null,null,null,null,null,null,{"$f":"IF(G23=\"\",\"\",VLOOKUP(G23,入力制限シート!A$7:C$33,2,FALSE))","v":""},{"$f":"IF(G23=\"\",\"\",VLOOKUP(G23,入力制限シート!A$7:C$33,3,FALSE))","v":""}]
[null,null,null,null,null,null,null,{"$f":"IF(G24=\"\",\"\",VLOOKUP(G24,入力制限シート!A$7:C$33,2,FALSE))","v":""},{"$f":"IF(G24=\"\",\"\",VLOOKUP(G24,入力制限シート!A$7:C$33,3,FALSE))","v":""}]
[null,null,null,null,null,null,null,{"$f":"IF(G25=\"\",\"\",VLOOKUP(G25,入力制限シート!A$7:C$33,2,FALSE))","v":""},{"$f":"IF(G25=\"\",\"\",VLOOKUP(G25,入力制限シート!A$7:C$33,3,FALSE))","v":""}]
[null,null,null,null,null,null,null,{"$f":"IF(G26=\"\",\"\",VLOOKUP(G26,入力制限シート!A$7:C$33,2,FALSE))","v":""},{"$f":"IF(G26=\"\",\"\",VLOOKUP(G26,入力制限シート!A$7:C$33,3,FALSE))","v":""}]
[null,null,null,null,null,null,null,{"$f":"IF(G27=\"\",\"\",VLOOKUP(G27,入力制限シート!A$7:C$33,2,FALSE))","v":""},{"$f":"IF(G27=\"\",\"\",VLOOKUP(G27,入力制限シート!A$7:C$33,3,FALSE))","v":""}]
[null,null,null,null,null,null,null,{"$f":"IF(G28=\"\",\"\",VLOOKUP(G28,入力制限シート!A$7:C$33,2,FALSE))","v":""},{"$f":"IF(G28=\"\",\"\",VLOOKUP(G28,入力制限シート!A$7:C$33,3,FALSE))","v":""}]
[null,null,null,null,null,null,null,{"$f":"IF(G29=\"\",\"\",VLOOKUP(G29,入力制限シート!A$7:C$33,2,FALSE))","v":""},{"$f":"IF(G29=\"\",\"\",VLOOKUP(G29,入力制限シート!A$7:C$33,3,FALSE))","v":""}]
[null,null,null,null,null,null,null,{"$f":"IF(G30=\"\",\"\",VLOOKUP(G30,入力制限シート!A$7:C$33,2,FALSE))","v":""},{"$f":"IF(G30=\"\",\"\",VLOOKUP(G30,入力制限シート!A$7:C$33,3,FALSE))","v":""}]
[null,null,null,null,null,null,null,{"$f":"IF(G31=\"\",\"\",VLOOKUP(G31,入力制限シート!A$7:C$33,2,FALSE))","v":""},{"$f":"IF(G31=\"\",\"\",VLOOKUP(G31,入力制限シート!A$7:C$33,3,FALSE))","v":""}]
[null,null,null,null,null,null,null,{"$f":"IF(G32=\"\",\"\",VLOOKUP(G32,入力制限シート!A$7:C$33,2,FALSE))","v":""},{"$f":"IF(G32=\"\",\"\",VLOOKUP(G32,入力制限シート!A$7:C$33,3,FALSE))","v":""}]
[null,null,null,null,null,null,null,{"$f":"IF(G33=\"\",\"\",VLOOKUP(G33,入力制限シート!A$7:C$33,2,FALSE))","v":""},{"$f":"IF(G33=\"\",\"\",VLOOKUP(G33,入力制限シート!A$7:C$33,3,FALSE))","v":""}]
[null,null,null,null,null,null,null,{"$f":"IF(G34=\"\",\"\",VLOOKUP(G34,入力制限シート!A$7:C$33,2,FALSE))","v":""},{"$f":"IF(G34=\"\",\"\",VLOOKUP(G34,入力制限シート!A$7:C$33,3,FALSE))","v":""}]
[null,null,null,null,null,null,null,{"$f":"IF(G35=\"\",\"\",VLOOKUP(G35,入力制限シート!A$7:C$33,2,FALSE))","v":""},{"$f":"IF(G35=\"\",\"\",VLOOKUP(G35,入力制限シート!A$7:C$33,3,FALSE))","v":""}]
[null,null,null,null,null,null,null,{"$f":"IF(G36=\"\",\"\",VLOOKUP(G36,入力制限シート!A$7:C$33,2,FALSE))","v":""},{"$f":"IF(G36=\"\",\"\",VLOOKUP(G36,入力制限シート!A$7:C$33,3,FALSE))","v":""}]
[null,null,null,null,null,null,null,{"$f":"IF(G37=\"\",\"\",VLOOKUP(G37,入力制限シート!A$7:C$33,2,FALSE))","v":""},{"$f":"IF(G37=\"\",\"\",VLOOKUP(G37,入力制限シート!A$7:C$33,3,FALSE))","v":""}]
[null,null,null,null,null,null,null,{"$f":"IF(G38=\"\",\"\",VLOOKUP(G38,入力制限シート!A$7:C$33,2,FALSE))","v":""},{"$f":"IF(G38=\"\",\"\",VLOOKUP(G38,入力制限シート!A$7:C$33,3,FALSE))","v":""}]
[null,null,null,null,null,null,null,{"$f":"IF(G39=\"\",\"\",VLOOKUP(G39,入力制限シート!A$7:C$33,2,FALSE))","v":""},{"$f":"IF(G39=\"\",\"\",VLOOKUP(G39,入力制限シート!A$7:C$33,3,FALSE))","v":""}]
[null,null,null,null,null,null,null,{"$f":"IF(G40=\"\",\"\",VLOOKUP(G40,入力制限シート!A$7:C$33,2,FALSE))","v":""},{"$f":"IF(G40=\"\",\"\",VLOOKUP(G40,入力制限シート!A$7:C$33,3,FALSE))","v":""}]
[null,null,null,null,null,null,null,{"$f":"IF(G41=\"\",\"\",VLOOKUP(G41,入力制限シート!A$7:C$33,2,FALSE))","v":""},{"$f":"IF(G41=\"\",\"\",VLOOKUP(G41,入力制限シート!A$7:C$33,3,FALSE))","v":""}]
[null,null,null,null,null,null,null,{"$f":"IF(G42=\"\",\"\",VLOOKUP(G42,入力制限シート!A$7:C$33,2,FALSE))","v":""},{"$f":"IF(G42=\"\",\"\",VLOOKUP(G42,入力制限シート!A$7:C$33,3,FALSE))","v":""}]
[null,null,null,null,null,null,null,{"$f":"IF(G43=\"\",\"\",VLOOKUP(G43,入力制限シート!A$7:C$33,2,FALSE))","v":""},{"$f":"IF(G43=\"\",\"\",VLOOKUP(G43,入力制限シート!A$7:C$33,3,FALSE))","v":""}]
[null,null,null,null,null,null,null,{"$f":"IF(G44=\"\",\"\",VLOOKUP(G44,入力制限シート!A$7:C$33,2,FALSE))","v":""},{"$f":"IF(G44=\"\",\"\",VLOOKUP(G44,入力制限シート!A$7:C$33,3,FALSE))","v":""}]
[null,null,null,null,null,null,null,{"$f":"IF(G45=\"\",\"\",VLOOKUP(G45,入力制限シート!A$7:C$33,2,FALSE))","v":""},{"$f":"IF(G45=\"\",\"\",VLOOKUP(G45,入力制限シート!A$7:C$33,3,FALSE))","v":""}]
[null,null,null,null,null,null,null,{"$f":"IF(G46=\"\",\"\",VLOOKUP(G46,入力制限シート!A$7:C$33,2,FALSE))","v":""},{"$f":"IF(G46=\"\",\"\",VLOOKUP(G46,入力制限シート!A$7:C$33,3,FALSE))","v":""}]
[null,null,null,null,null,null,null,{"$f":"IF(G47=\"\",\"\",VLOOKUP(G47,入力制限シート!A$7:C$33,2,FALSE))","v":""},{"$f":"IF(G47=\"\",\"\",VLOOKUP(G47,入力制限シート!A$7:C$33,3,FALSE))","v":""}]
[null,null,null,null,null,null,null,{"$f":"IF(G48=\"\",\"\",VLOOKUP(G48,入力制限シート!A$7:C$33,2,FALSE))","v":""},{"$f":"IF(G48=\"\",\"\",VLOOKUP(G48,入力制限シート!A$7:C$33,3,FALSE))","v":""}]
[null,null,null,null,null,null,null,{"$f":"IF(G49=\"\",\"\",VLOOKUP(G49,入力制限シート!A$7:C$33,2,FALSE))","v":""},{"$f":"IF(G49=\"\",\"\",VLOOKUP(G49,入力制限シート!A$7:C$33,3,FALSE))","v":""}]
[null,null,null,null,null,null,null,{"$f":"IF(G50=\"\",\"\",VLOOKUP(G50,入力制限シート!A$7:C$33,2,FALSE))","v":""},{"$f":"IF(G50=\"\",\"\",VLOOKUP(G50,入力制限シート!A$7:C$33,3,FALSE))","v":""}]
[null,null,null,null,null,null,null,{"$f":"IF(G51=\"\",\"\",VLOOKUP(G51,入力制限シート!A$7:C$33,2,FALSE))","v":""},{"$f":"IF(G51=\"\",\"\",VLOOKUP(G51,入力制限シート!A$7:C$33,3,FALSE))","v":""}]
[null,null,null,null,null,null,null,{"$f":"IF(G52=\"\",\"\",VLOOKUP(G52,入力制限シート!A$7:C$33,2,FALSE))","v":""},{"$f":"IF(G52=\"\",\"\",VLOOKUP(G52,入力制限シート!A$7:C$33,3,FALSE))","v":""}]
[null,null,null,null,null,null,null,{"$f":"IF(G53=\"\",\"\",VLOOKUP(G53,入力制限シート!A$7:C$33,2,FALSE))","v":""},{"$f":"IF(G53=\"\",\"\",VLOOKUP(G53,入力制限シート!A$7:C$33,3,FALSE))","v":""}]
[null,null,null,null,null,null,null,{"$f":"IF(G54=\"\",\"\",VLOOKUP(G54,入力制限シート!A$7:C$33,2,FALSE))","v":""},{"$f":"IF(G54=\"\",\"\",VLOOKUP(G54,入力制限シート!A$7:C$33,3,FALSE))","v":""}]
[null,null,null,null,null,null,null,{"$f":"IF(G55=\"\",\"\",VLOOKUP(G55,入力制限シート!A$7:C$33,2,FALSE))","v":""},{"$f":"IF(G55=\"\",\"\",VLOOKUP(G55,入力制限シート!A$7:C$33,3,FALSE))","v":""}]
[null,null,null,null,null,null,null,{"$f":"IF(G56=\"\",\"\",VLOOKUP(G56,入力制限シート!A$7:C$33,2,FALSE))","v":""},{"$f":"IF(G56=\"\",\"\",VLOOKUP(G56,入力制限シート!A$7:C$33,3,FALSE))","v":""}]
[null,null,null,null,null,null,null,{"$f":"IF(G57=\"\",\"\",VLOOKUP(G57,入力制限シート!A$7:C$33,2,FALSE))","v":""},{"$f":"IF(G57=\"\",\"\",VLOOKUP(G57,入力制限シート!A$7:C$33,3,FALSE))","v":""}]
[null,null,null,null,null,null,null,{"$f":"IF(G58=\"\",\"\",VLOOKUP(G58,入力制限シート!A$7:C$33,2,FALSE))","v":""},{"$f":"IF(G58=\"\",\"\",VLOOKUP(G58,入力制限シート!A$7:C$33,3,FALSE))","v":""}]
[null,null,null,null,null,null,null,{"$f":"IF(G59=\"\",\"\",VLOOKUP(G59,入力制限シート!A$7:C$33,2,FALSE))","v":""},{"$f":"IF(G59=\"\",\"\",VLOOKUP(G59,入力制限シート!A$7:C$33,3,FALSE))","v":""}]
[null,null,null,null,null,null,null,{"$f":"IF(G60=\"\",\"\",VLOOKUP(G60,入力制限シート!A$7:C$33,2,FALSE))","v":""},{"$f":"IF(G60=\"\",\"\",VLOOKUP(G60,入力制限シート!A$7:C$33,3,FALSE))","v":""}]
[null,null,null,null,null,null,null,{"$f":"IF(G61=\"\",\"\",VLOOKUP(G61,入力制限シート!A$7:C$33,2,FALSE))","v":""},{"$f":"IF(G61=\"\",\"\",VLOOKUP(G61,入力制限シート!A$7:C$33,3,FALSE))","v":""}]
[null,null,null,null,null,null,null,{"$f":"IF(G62=\"\",\"\",VLOOKUP(G62,入力制限シート!A$7:C$33,2,FALSE))","v":""},{"$f":"IF(G62=\"\",\"\",VLOOKUP(G62,入力制限シート!A$7:C$33,3,FALSE))","v":""}]
[null,null,null,null,null,null,null,{"$f":"IF(G63=\"\",\"\",VLOOKUP(G63,入力制限シート!A$7:C$33,2,FALSE))","v":""},{"$f":"IF(G63=\"\",\"\",VLOOKUP(G63,入力制限シート!A$7:C$33,3,FALSE))","v":""}]
[null,null,null,null,null,null,null,{"$f":"IF(G64=\"\",\"\",VLOOKUP(G64,入力制限シート!A$7:C$33,2,FALSE))","v":""},{"$f":"IF(G64=\"\",\"\",VLOOKUP(G64,入力制限シート!A$7:C$33,3,FALSE))","v":""}]
[null,null,null,null,null,null,null,{"$f":"IF(G65=\"\",\"\",VLOOKUP(G65,入力制限シート!A$7:C$33,2,FALSE))","v":""},{"$f":"IF(G65=\"\",\"\",VLOOKUP(G65,入力制限シート!A$7:C$33,3,FALSE))","v":""}]
[null,null,null,null,null,null,null,{"$f":"IF(G66=\"\",\"\",VLOOKUP(G66,入力制限シート!A$7:C$33,2,FALSE))","v":""},{"$f":"IF(G66=\"\",\"\",VLOOKUP(G66,入力制限シート!A$7:C$33,3,FALSE))","v":""}]
[null,null,null,null,null,null,null,{"$f":"IF(G67=\"\",\"\",VLOOKUP(G67,入力制限シート!A$7:C$33,2,FALSE))","v":""},{"$f":"IF(G67=\"\",\"\",VLOOKUP(G67,入力制限シート!A$7:C$33,3,FALSE))","v":""}]
[null,null,null,null,null,null,null,{"$f":"IF(G68=\"\",\"\",VLOOKUP(G68,入力制限シート!A$7:C$33,2,FALSE))","v":""},{"$f":"IF(G68=\"\",\"\",VLOOKUP(G68,入力制限シート!A$7:C$33,3,FALSE))","v":""}]
[null,null,null,null,null,null,null,{"$f":"IF(G69=\"\",\"\",VLOOKUP(G69,入力制限シート!A$7:C$33,2,FALSE))","v":""},{"$f":"IF(G69=\"\",\"\",VLOOKUP(G69,入力制限シート!A$7:C$33,3,FALSE))","v":""}]
[null,null,null,null,null,null,null,{"$f":"IF(G70=\"\",\"\",VLOOKUP(G70,入力制限シート!A$7:C$33,2,FALSE))","v":""},{"$f":"IF(G70=\"\",\"\",VLOOKUP(G70,入力制限シート!A$7:C$33,3,FALSE))","v":""}]
[null,null,null,null,null,null,null,{"$f":"IF(G71=\"\",\"\",VLOOKUP(G71,入力制限シート!A$7:C$33,2,FALSE))","v":""},{"$f":"IF(G71=\"\",\"\",VLOOKUP(G71,入力制限シート!A$7:C$33,3,FALSE))","v":""}]
[null,null,null,null,null,null,null,{"$f":"IF(G72=\"\",\"\",VLOOKUP(G72,入力制限シート!A$7:C$33,2,FALSE))","v":""},{"$f":"IF(G72=\"\",\"\",VLOOKUP(G72,入力制限シート!A$7:C$33,3,FALSE))","v":""}]
[null,null,null,null,null,null,null,{"$f":"IF(G73=\"\",\"\",VLOOKUP(G73,入力制限シート!A$7:C$33,2,FALSE))","v":""},{"$f":"IF(G73=\"\",\"\",VLOOKUP(G73,入力制限シート!A$7:C$33,3,FALSE))","v":""}]
[null,null,null,null,null,null,null,{"$f":"IF(G74=\"\",\"\",VLOOKUP(G74,入力制限シート!A$7:C$33,2,FALSE))","v":""},{"$f":"IF(G74=\"\",\"\",VLOOKUP(G74,入力制限シート!A$7:C$33,3,FALSE))","v":""}]
[null,null,null,null,null,null,null,{"$f":"IF(G75=\"\",\"\",VLOOKUP(G75,入力制限シート!A$7:C$33,2,FALSE))","v":""},{"$f":"IF(G75=\"\",\"\",VLOOKUP(G75,入力制限シート!A$7:C$33,3,FALSE))","v":""}]
[null,null,null,null,null,null,null,{"$f":"IF(G76=\"\",\"\",VLOOKUP(G76,入力制限シート!A$7:C$33,2,FALSE))","v":""},{"$f":"IF(G76=\"\",\"\",VLOOKUP(G76,入力制限シート!A$7:C$33,3,FALSE))","v":""}]
[null,null,null,null,null,null,null,{"$f":"IF(G77=\"\",\"\",VLOOKUP(G77,入力制限シート!A$7:C$33,2,FALSE))","v":""},{"$f":"IF(G77=\"\",\"\",VLOOKUP(G77,入力制限シート!A$7:C$33,3,FALSE))","v":""}]
[null,null,null,null,null,null,null,{"$f":"IF(G78=\"\",\"\",VLOOKUP(G78,入力制限シート!A$7:C$33,2,FALSE))","v":""},{"$f":"IF(G78=\"\",\"\",VLOOKUP(G78,入力制限シート!A$7:C$33,3,FALSE))","v":""}]
[null,null,null,null,null,null,null,{"$f":"IF(G79=\"\",\"\",VLOOKUP(G79,入力制限シート!A$7:C$33,2,FALSE))","v":""},{"$f":"IF(G79=\"\",\"\",VLOOKUP(G79,入力制限シート!A$7:C$33,3,FALSE))","v":""}]
[null,null,null,null,null,null,null,{"$f":"IF(G80=\"\",\"\",VLOOKUP(G80,入力制限シート!A$7:C$33,2,FALSE))","v":""},{"$f":"IF(G80=\"\",\"\",VLOOKUP(G80,入力制限シート!A$7:C$33,3,FALSE))","v":""}]
[null,null,null,null,null,null,null,{"$f":"IF(G81=\"\",\"\",VLOOKUP(G81,入力制限シート!A$7:C$33,2,FALSE))","v":""},{"$f":"IF(G81=\"\",\"\",VLOOKUP(G81,入力制限シート!A$7:C$33,3,FALSE))","v":""}]
[null,null,null,null,null,null,null,{"$f":"IF(G82=\"\",\"\",VLOOKUP(G82,入力制限シート!A$7:C$33,2,FALSE))","v":""},{"$f":"IF(G82=\"\",\"\",VLOOKUP(G82,入力制限シート!A$7:C$33,3,FALSE))","v":""}]
[null,null,null,null,null,null,null,{"$f":"IF(G83=\"\",\"\",VLOOKUP(G83,入力制限シート!A$7:C$33,2,FALSE))","v":""},{"$f":"IF(G83=\"\",\"\",VLOOKUP(G83,入力制限シート!A$7:C$33,3,FALSE))","v":""}]
[null,null,null,null,null,null,null,{"$f":"IF(G84=\"\",\"\",VLOOKUP(G84,入力制限シート!A$7:C$33,2,FALSE))","v":""},{"$f":"IF(G84=\"\",\"\",VLOOKUP(G84,入力制限シート!A$7:C$33,3,FALSE))","v":""}]
[null,null,null,null,null,null,null,{"$f":"IF(G85=\"\",\"\",VLOOKUP(G85,入力制限シート!A$7:C$33,2,FALSE))","v":""},{"$f":"IF(G85=\"\",\"\",VLOOKUP(G85,入力制限シート!A$7:C$33,3,FALSE))","v":""}]
[null,null,null,null,null,null,null,{"$f":"IF(G86=\"\",\"\",VLOOKUP(G86,入力制限シート!A$7:C$33,2,FALSE))","v":""},{"$f":"IF(G86=\"\",\"\",VLOOKUP(G86,入力制限シート!A$7:C$33,3,FALSE))","v":""}]
[null,null,null,null,null,null,null,{"$f":"IF(G87=\"\",\"\",VLOOKUP(G87,入力制限シート!A$7:C$33,2,FALSE))","v":""},{"$f":"IF(G87=\"\",\"\",VLOOKUP(G87,入力制限シート!A$7:C$33,3,FALSE))","v":""}]
[null,null,null,null,null,null,null,{"$f":"IF(G88=\"\",\"\",VLOOKUP(G88,入力制限シート!A$7:C$33,2,FALSE))","v":""},{"$f":"IF(G88=\"\",\"\",VLOOKUP(G88,入力制限シート!A$7:C$33,3,FALSE))","v":""}]
[null,null,null,null,null,null,null,{"$f":"IF(G89=\"\",\"\",VLOOKUP(G89,入力制限シート!A$7:C$33,2,FALSE))","v":""},{"$f":"IF(G89=\"\",\"\",VLOOKUP(G89,入力制限シート!A$7:C$33,3,FALSE))","v":""}]
[null,null,null,null,null,null,null,{"$f":"IF(G90=\"\",\"\",VLOOKUP(G90,入力制限シート!A$7:C$33,2,FALSE))","v":""},{"$f":"IF(G90=\"\",\"\",VLOOKUP(G90,入力制限シート!A$7:C$33,3,FALSE))","v":""}]
[null,null,null,null,null,null,null,{"$f":"IF(G91=\"\",\"\",VLOOKUP(G91,入力制限シート!A$7:C$33,2,FALSE))","v":""},{"$f":"IF(G91=\"\",\"\",VLOOKUP(G91,入力制限シート!A$7:C$33,3,FALSE))","v":""}]
[null,null,null,null,null,null,null,{"$f":"IF(G92=\"\",\"\",VLOOKUP(G92,入力制限シート!A$7:C$33,2,FALSE))","v":""},{"$f":"IF(G92=\"\",\"\",VLOOKUP(G92,入力制限シート!A$7:C$33,3,FALSE))","v":""}]
[null,null,null,null,null,null,null,{"$f":"IF(G93=\"\",\"\",VLOOKUP(G93,入力制限シート!A$7:C$33,2,FALSE))","v":""},{"$f":"IF(G93=\"\",\"\",VLOOKUP(G93,入力制限シート!A$7:C$33,3,FALSE))","v":""}]
[null,null,null,null,null,null,null,{"$f":"IF(G94=\"\",\"\",VLOOKUP(G94,入力制限シート!A$7:C$33,2,FALSE))","v":""},{"$f":"IF(G94=\"\",\"\",VLOOKUP(G94,入力制限シート!A$7:C$33,3,FALSE))","v":""}]
[null,null,null,null,null,null,null,{"$f":"IF(G95=\"\",\"\",VLOOKUP(G95,入力制限シート!A$7:C$33,2,FALSE))","v":""},{"$f":"IF(G95=\"\",\"\",VLOOKUP(G95,入力制限シート!A$7:C$33,3,FALSE))","v":""}]
[null,null,null,null,null,null,null,{"$f":"IF(G96=\"\",\"\",VLOOKUP(G96,入力制限シート!A$7:C$33,2,FALSE))","v":""},{"$f":"IF(G96=\"\",\"\",VLOOKUP(G96,入力制限シート!A$7:C$33,3,FALSE))","v":""}]
[null,null,null,null,null,null,null,{"$f":"IF(G97=\"\",\"\",VLOOKUP(G97,入力制限シート!A$7:C$33,2,FALSE))","v":""},{"$f":"IF(G97=\"\",\"\",VLOOKUP(G97,入力制限シート!A$7:C$33,3,FALSE))","v":""}]
[null,null,null,null,null,null,null,{"$f":"IF(G98=\"\",\"\",VLOOKUP(G98,入力制限シート!A$7:C$33,2,FALSE))","v":""},{"$f":"IF(G98=\"\",\"\",VLOOKUP(G98,入力制限シート!A$7:C$33,3,FALSE))","v":""}]
[null,null,null,null,null,null,null,{"$f":"IF(G99=\"\",\"\",VLOOKUP(G99,入力制限シート!A$7:C$33,2,FALSE))","v":""},{"$f":"IF(G99=\"\",\"\",VLOOKUP(G99,入力制限シート!A$7:C$33,3,FALSE))","v":""}]
[null,null,null,null,null,null,null,{"$f":"IF(G100=\"\",\"\",VLOOKUP(G100,入力制限シート!A$7:C$33,2,FALSE))","v":""},{"$f":"IF(G100=\"\",\"\",VLOOKUP(G100,入力制限シート!A$7:C$33,3,FALSE))","v":""}]
[null,null,null,null,null,null,null,{"$f":"IF(G101=\"\",\"\",VLOOKUP(G101,入力制限シート!A$7:C$33,2,FALSE))","v":""},{"$f":"IF(G101=\"\",\"\",VLOOKUP(G101,入力制限シート!A$7:C$33,3,FALSE))","v":""}]
[null,null,null,null,null,null,null,{"$f":"IF(G102=\"\",\"\",VLOOKUP(G102,入力制限シート!A$7:C$33,2,FALSE))","v":""},{"$f":"IF(G102=\"\",\"\",VLOOKUP(G102,入力制限シート!A$7:C$33,3,FALSE))","v":""}]
[null,null,null,null,null,null,null,{"$f":"IF(G103=\"\",\"\",VLOOKUP(G103,入力制限シート!A$7:C$33,2,FALSE))","v":""},{"$f":"IF(G103=\"\",\"\",VLOOKUP(G103,入力制限シート!A$7:C$33,3,FALSE))","v":""}]
[null,null,null,null,null,null,null,{"$f":"IF(G104=\"\",\"\",VLOOKUP(G104,入力制限シート!A$7:C$33,2,FALSE))","v":""},{"$f":"IF(G104=\"\",\"\",VLOOKUP(G104,入力制限シート!A$7:C$33,3,FALSE))","v":""}]
[null,null,null,null,null,null,null,{"$f":"IF(G105=\"\",\"\",VLOOKUP(G105,入力制限シート!A$7:C$33,2,FALSE))","v":""},{"$f":"IF(G105=\"\",\"\",VLOOKUP(G105,入力制限シート!A$7:C$33,3,FALSE))","v":""}]
[null,null,null,null,null,null,null,{"$f":"IF(G106=\"\",\"\",VLOOKUP(G106,入力制限シート!A$7:C$33,2,FALSE))","v":""},{"$f":"IF(G106=\"\",\"\",VLOOKUP(G106,入力制限シート!A$7:C$33,3,FALSE))","v":""}]
[null,null,null,null,null,null,null,{"$f":"IF(G107=\"\",\"\",VLOOKUP(G107,入力制限シート!A$7:C$33,2,FALSE))","v":""},{"$f":"IF(G107=\"\",\"\",VLOOKUP(G107,入力制限シート!A$7:C$33,3,FALSE))","v":""}]
[null,null,null,null,null,null,null,{"$f":"IF(G108=\"\",\"\",VLOOKUP(G108,入力制限シート!A$7:C$33,2,FALSE))","v":""},{"$f":"IF(G108=\"\",\"\",VLOOKUP(G108,入力制限シート!A$7:C$33,3,FALSE))","v":""}]
[null,null,null,null,null,null,null,{"$f":"IF(G109=\"\",\"\",VLOOKUP(G109,入力制限シート!A$7:C$33,2,FALSE))","v":""},{"$f":"IF(G109=\"\",\"\",VLOOKUP(G109,入力制限シート!A$7:C$33,3,FALSE))","v":""}]
[null,null,null,null,null,null,null,{"$f":"IF(G110=\"\",\"\",VLOOKUP(G110,入力制限シート!A$7:C$33,2,FALSE))","v":""},{"$f":"IF(G110=\"\",\"\",VLOOKUP(G110,入力制限シート!A$7:C$33,3,FALSE))","v":""}]
[null,null,null,null,null,null,null,{"$f":"IF(G111=\"\",\"\",VLOOKUP(G111,入力制限シート!A$7:C$33,2,FALSE))","v":""},{"$f":"IF(G111=\"\",\"\",VLOOKUP(G111,入力制限シート!A$7:C$33,3,FALSE))","v":""}]
[null,null,null,null,null,null,null,{"$f":"IF(G112=\"\",\"\",VLOOKUP(G112,入力制限シート!A$7:C$33,2,FALSE))","v":""},{"$f":"IF(G112=\"\",\"\",VLOOKUP(G112,入力制限シート!A$7:C$33,3,FALSE))","v":""}]
[null,null,null,null,null,null,null,{"$f":"IF(G113=\"\",\"\",VLOOKUP(G113,入力制限シート!A$7:C$33,2,FALSE))","v":""},{"$f":"IF(G113=\"\",\"\",VLOOKUP(G113,入力制限シート!A$7:C$33,3,FALSE))","v":""}]
[null,null,null,null,null,null,null,{"$f":"IF(G114=\"\",\"\",VLOOKUP(G114,入力制限シート!A$7:C$33,2,FALSE))","v":""},{"$f":"IF(G114=\"\",\"\",VLOOKUP(G114,入力制限シート!A$7:C$33,3,FALSE))","v":""}]
[null,null,null,null,null,null,null,{"$f":"IF(G115=\"\",\"\",VLOOKUP(G115,入力制限シート!A$7:C$33,2,FALSE))","v":""},{"$f":"IF(G115=\"\",\"\",VLOOKUP(G115,入力制限シート!A$7:C$33,3,FALSE))","v":""}]
[null,null,null,null,null,null,null,{"$f":"IF(G116=\"\",\"\",VLOOKUP(G116,入力制限シート!A$7:C$33,2,FALSE))","v":""},{"$f":"IF(G116=\"\",\"\",VLOOKUP(G116,入力制限シート!A$7:C$33,3,FALSE))","v":""}]
[null,null,null,null,null,null,null,{"$f":"IF(G117=\"\",\"\",VLOOKUP(G117,入力制限シート!A$7:C$33,2,FALSE))","v":""},{"$f":"IF(G117=\"\",\"\",VLOOKUP(G117,入力制限シート!A$7:C$33,3,FALSE))","v":""}]
[null,null,null,null,null,null,null,{"$f":"IF(G118=\"\",\"\",VLOOKUP(G118,入力制限シート!A$7:C$33,2,FALSE))","v":""},{"$f":"IF(G118=\"\",\"\",VLOOKUP(G118,入力制限シート!A$7:C$33,3,FALSE))","v":""}]
[null,null,null,null,null,null,null,{"$f":"IF(G119=\"\",\"\",VLOOKUP(G119,入力制限シート!A$7:C$33,2,FALSE))","v":""},{"$f":"IF(G119=\"\",\"\",VLOOKUP(G119,入力制限シート!A$7:C$33,3,FALSE))","v":""}]
[null,null,null,null,null,null,null,{"$f":"IF(G120=\"\",\"\",VLOOKUP(G120,入力制限シート!A$7:C$33,2,FALSE))","v":""},{"$f":"IF(G120=\"\",\"\",VLOOKUP(G120,入力制限シート!A$7:C$33,3,FALSE))","v":""}]
[null,null,null,null,null,null,null,{"$f":"IF(G121=\"\",\"\",VLOOKUP(G121,入力制限シート!A$7:C$33,2,FALSE))","v":""},{"$f":"IF(G121=\"\",\"\",VLOOKUP(G121,入力制限シート!A$7:C$33,3,FALSE))","v":""}]
[null,null,null,null,null,null,null,{"$f":"IF(G122=\"\",\"\",VLOOKUP(G122,入力制限シート!A$7:C$33,2,FALSE))","v":""},{"$f":"IF(G122=\"\",\"\",VLOOKUP(G122,入力制限シート!A$7:C$33,3,FALSE))","v":""}]
[null,null,null,null,null,null,null,{"$f":"IF(G123=\"\",\"\",VLOOKUP(G123,入力制限シート!A$7:C$33,2,FALSE))","v":""},{"$f":"IF(G123=\"\",\"\",VLOOKUP(G123,入力制限シート!A$7:C$33,3,FALSE))","v":""}]
[null,null,null,null,null,null,null,{"$f":"IF(G124=\"\",\"\",VLOOKUP(G124,入力制限シート!A$7:C$33,2,FALSE))","v":""},{"$f":"IF(G124=\"\",\"\",VLOOKUP(G124,入力制限シート!A$7:C$33,3,FALSE))","v":""}]
[null,null,null,null,null,null,null,{"$f":"IF(G125=\"\",\"\",VLOOKUP(G125,入力制限シート!A$7:C$33,2,FALSE))","v":""},{"$f":"IF(G125=\"\",\"\",VLOOKUP(G125,入力制限シート!A$7:C$33,3,FALSE))","v":""}]
[null,null,null,null,null,null,null,{"$f":"IF(G126=\"\",\"\",VLOOKUP(G126,入力制限シート!A$7:C$33,2,FALSE))","v":""},{"$f":"IF(G126=\"\",\"\",VLOOKUP(G126,入力制限シート!A$7:C$33,3,FALSE))","v":""}]
[null,null,null,null,null,null,null,{"$f":"IF(G127=\"\",\"\",VLOOKUP(G127,入力制限シート!A$7:C$33,2,FALSE))","v":""},{"$f":"IF(G127=\"\",\"\",VLOOKUP(G127,入力制限シート!A$7:C$33,3,FALSE))","v":""}]
[null,null,null,null,null,null,null,{"$f":"IF(G128=\"\",\"\",VLOOKUP(G128,入力制限シート!A$7:C$33,2,FALSE))","v":""},{"$f":"IF(G128=\"\",\"\",VLOOKUP(G128,入力制限シート!A$7:C$33,3,FALSE))","v":""}]
[null,null,null,null,null,null,null,{"$f":"IF(G129=\"\",\"\",VLOOKUP(G129,入力制限シート!A$7:C$33,2,FALSE))","v":""},{"$f":"IF(G129=\"\",\"\",VLOOKUP(G129,入力制限シート!A$7:C$33,3,FALSE))","v":""}]

{"sheet":"アンケート調査用紙","index":2,"n_rows":100,"n_cols":12,"rows_kept":100,"cut":false,"hidden":false,"merged":[]}
["観察場所（メッシュか緯度経度）",null,null,null,"青く塗った部分に入力ください",null,null,null,"メッシュを調べるHP　http://www.gis-tool.com/mapview/areameshmap.html"]
["メッシュ番号","緯度","経度","観察年","月","日","観察者","種名","繁殖区分","観察コード","繁殖ランク","備考"]
[null,null,null,null,null,null,null,null,null,{"$f":"IF(I3=\"\",\"\",VLOOKUP(I3,入力制限シート!A$7:C$33,2,FALSE))","v":""},{"$f":"IF(I3=\"\",\"\",VLOOKUP(I3,入力制限シート!A$7:C$33,3,FALSE))","v":""}]
[null,null,null,null,null,null,null,null,null,{"$f":"IF(I4=\"\",\"\",VLOOKUP(I4,入力制限シート!A$7:C$33,2,FALSE))","v":""},{"$f":"IF(I4=\"\",\"\",VLOOKUP(I4,入力制限シート!A$7:C$33,3,FALSE))","v":""}]
[null,null,null,null,null,null,null,null,null,{"$f":"IF(I5=\"\",\"\",VLOOKUP(I5,入力制限シート!A$7:C$33,2,FALSE))","v":""},{"$f":"IF(I5=\"\",\"\",VLOOKUP(I5,入力制限シート!A$7:C$33,3,FALSE))","v":""}]
[null,null,null,null,null,null,null,null,null,{"$f":"IF(I6=\"\",\"\",VLOOKUP(I6,入力制限シート!A$7:C$33,2,FALSE))","v":""},{"$f":"IF(I6=\"\",\"\",VLOOKUP(I6,入力制限シート!A$7:C$33,3,FALSE))","v":""}]
[null,null,null,null,null,null,null,null,null,{"$f":"IF(I7=\"\",\"\",VLOOKUP(I7,入力制限シート!A$7:C$33,2,FALSE))","v":""},{"$f":"IF(I7=\"\",\"\",VLOOKUP(I7,入力制限シート!A$7:C$33,3,FALSE))","v":""}]
[null,null,null,null,null,null,null,null,null,{"$f":"IF(I8=\"\",\"\",VLOOKUP(I8,入力制限シート!A$7:C$33,2,FALSE))","v":""},{"$f":"IF(I8=\"\",\"\",VLOOKUP(I8,入力制限シート!A$7:C$33,3,FALSE))","v":""}]
[null,null,null,null,null,null,null,null,null,{"$f":"IF(I9=\"\",\"\",VLOOKUP(I9,入力制限シート!A$7:C$33,2,FALSE))","v":""},{"$f":"IF(I9=\"\",\"\",VLOOKUP(I9,入力制限シート!A$7:C$33,3,FALSE))","v":""}]
[null,null,null,null,null,null,null,null,null,{"$f":"IF(I10=\"\",\"\",VLOOKUP(I10,入力制限シート!A$7:C$33,2,FALSE))","v":""},{"$f":"IF(I10=\"\",\"\",VLOOKUP(I10,入力制限シート!A$7:C$33,3,FALSE))","v":""}]
[null,null,null,null,null,null,null,null,null,{"$f":"IF(I11=\"\",\"\",VLOOKUP(I11,入力制限シート!A$7:C$33,2,FALSE))","v":""},{"$f":"IF(I11=\"\",\"\",VLOOKUP(I11,入力制限シート!A$7:C$33,3,FALSE))","v":""}]
[null,null,null,null,null,null,null,null,null,{"$f":"IF(I12=\"\",\"\",VLOOKUP(I12,入力制限シート!A$7:C$33,2,FALSE))","v":""},{"$f":"IF(I12=\"\",\"\",VLOOKUP(I12,入力制限シート!A$7:C$33,3,FALSE))","v":""}]
[null,null,null,null,null,null,null,null,null,{"$f":"IF(I13=\"\",\"\",VLOOKUP(I13,入力制限シート!A$7:C$33,2,FALSE))","v":""},{"$f":"IF(I13=\"\",\"\",VLOOKUP(I13,入力制限シート!A$7:C$33,3,FALSE))","v":""}]
[null,null,null,null,null,null,null,null,null,{"$f":"IF(I14=\"\",\"\",VLOOKUP(I14,入力制限シート!A$7:C$33,2,FALSE))","v":""},{"$f":"IF(I14=\"\",\"\",VLOOKUP(I14,入力制限シート!A$7:C$33,3,FALSE))","v":""}]
[null,null,null,null,null,null,null,null,null,{"$f":"IF(I15=\"\",\"\",VLOOKUP(I15,入力制限シート!A$7:C$33,2,FALSE))","v":""},{"$f":"IF(I15=\"\",\"\",VLOOKUP(I15,入力制限シート!A$7:C$33,3,FALSE))","v":""}]
[null,null,null,null,null,null,null,null,null,{"$f":"IF(I16=\"\",\"\",VLOOKUP(I16,入力制限シート!A$7:C$33,2,FALSE))","v":""},{"$f":"IF(I16=\"\",\"\",VLOOKUP(I16,入力制限シート!A$7:C$33,3,FALSE))","v":""}]
[null,null,null,null,null,null,null,null,null,{"$f":"IF(I17=\"\",\"\",VLOOKUP(I17,入力制限シート!A$7:C$33,2,FALSE))","v":""},{"$f":"IF(I17=\"\",\"\",VLOOKUP(I17,入力制限シート!A$7:C$33,3,FALSE))","v":""}]
[null,null,null,null,null,null,null,null,null,{"$f":"IF(I18=\"\",\"\",VLOOKUP(I18,入力制限シート!A$7:C$33,2,FALSE))","v":""},{"$f":"IF(I18=\"\",\"\",VLOOKUP(I18,入力制限シート!A$7:C$33,3,FALSE))","v":""}]
[null,null,null,null,null,null,null,null,null,{"$f":"IF(I19=\"\",\"\",VLOOKUP(I19,入力制限シート!A$7:C$33,2,FALSE))","v":""},{"$f":"IF(I19=\"\",\"\",VLOOKUP(I19,入力制限シート!A$7:C$33,3,FALSE))","v":""}]
[null,null,null,null,null,null,null,null,null,{"$f":"IF(I20=\"\",\"\",VLOOKUP(I20,入力制限シート!A$7:C$33,2,FALSE))","v":""},{"$f":"IF(I20=\"\",\"\",VLOOKUP(I20,入力制限シート!A$7:C$33,3,FALSE))","v":""}]
[null,null,null,null,null,null,null,null,null,{"$f":"IF(I21=\"\",\"\",VLOOKUP(I21,入力制限シート!A$7:C$33,2,FALSE))","v":""},{"$f":"IF(I21=\"\",\"\",VLOOKUP(I21,入力制限シート!A$7:C$33,3,FALSE))","v":""}]
[null,null,null,null,null,null,null,null,null,{"$f":"IF(I22=\"\",\"\",VLOOKUP(I22,入力制限シート!A$7:C$33,2,FALSE))","v":""},{"$f":"IF(I22=\"\",\"\",VLOOKUP(I22,入力制限シート!A$7:C$33,3,FALSE))","v":""}]
[null,null,null,null,null,null,null,null,null,{"$f":"IF(I23=\"\",\"\",VLOOKUP(I23,入力制限シート!A$7:C$33,2,FALSE))","v":""},{"$f":"IF(I23=\"\",\"\",VLOOKUP(I23,入力制限シート!A$7:C$33,3,FALSE))","v":""}]
[null,null,null,null,null,null,null,null,null,{"$f":"IF(I24=\"\",\"\",VLOOKUP(I24,入力制限シート!A$7:C$33,2,FALSE))","v":""},{"$f":"IF(I24=\"\",\"\",VLOOKUP(I24,入力制限シート!A$7:C$33,3,FALSE))","v":""}]
[null,null,null,null,null,null,null,null,null,{"$f":"IF(I25=\"\",\"\",VLOOKUP(I25,入力制限シート!A$7:C$33,2,FALSE))","v":""},{"$f":"IF(I25=\"\",\"\",VLOOKUP(I25,入力制限シート!A$7:C$33,3,FALSE))","v":""}]
[null,null,null,null,null,null,null,null,null,{"$f":"IF(I26=\"\",\"\",VLOOKUP(I26,入力制限シート!A$7:C$33,2,FALSE))","v":""},{"$f":"IF(I26=\"\",\"\",VLOOKUP(I26,入力制限シート!A$7:C$33,3,FALSE))","v":""}]
[null,null,null,null,null,null,null,null,null,{"$f":"IF(I27=\"\",\"\",VLOOKUP(I27,入力制限シート!A$7:C$33,2,FALSE))","v":""},{"$f":"IF(I27=\"\",\"\",VLOOKUP(I27,入力制限シート!A$7:C$33,3,FALSE))","v":""}]
[null,null,null,null,null,null,null,null,null,{"$f":"IF(I28=\"\",\"\",VLOOKUP(I28,入力制限シート!A$7:C$33,2,FALSE))","v":""},{"$f":"IF(I28=\"\",\"\",VLOOKUP(I28,入力制限シート!A$7:C$33,3,FALSE))","v":""}]
[null,null,null,null,null,null,null,null,null,{"$f":"IF(I29=\"\",\"\",VLOOKUP(I29,入力制限シート!A$7:C$33,2,FALSE))","v":""},{"$f":"IF(I29=\"\",\"\",VLOOKUP(I29,入力制限シート!A$7:C$33,3,FALSE))","v":""}]
[null,null,null,null,null,null,null,null,null,{"$f":"IF(I30=\"\",\"\",VLOOKUP(I30,入力制限シート!A$7:C$33,2,FALSE))","v":""},{"$f":"IF(I30=\"\",\"\",VLOOKUP(I30,入力制限シート!A$7:C$33,3,FALSE))","v":""}]
[null,null,null,null,null,null,null,null,null,{"$f":"IF(I31=\"\",\"\",VLOOKUP(I31,入力制限シート!A$7:C$33,2,FALSE))","v":""},{"$f":"IF(I31=\"\",\"\",VLOOKUP(I31,入力制限シート!A$7:C$33,3,FALSE))","v":""}]
[null,null,null,null,null,null,null,null,null,{"$f":"IF(I32=\"\",\"\",VLOOKUP(I32,入力制限シート!A$7:C$33,2,FALSE))","v":""},{"$f":"IF(I32=\"\",\"\",VLOOKUP(I32,入力制限シート!A$7:C$33,3,FALSE))","v":""}]
[null,null,null,null,null,null,null,null,null,{"$f":"IF(I33=\"\",\"\",VLOOKUP(I33,入力制限シート!A$7:C$33,2,FALSE))","v":""},{"$f":"IF(I33=\"\",\"\",VLOOKUP(I33,入力制限シート!A$7:C$33,3,FALSE))","v":""}]
[null,null,null,null,null,null,null,null,null,{"$f":"IF(I34=\"\",\"\",VLOOKUP(I34,入力制限シート!A$7:C$33,2,FALSE))","v":""},{"$f":"IF(I34=\"\",\"\",VLOOKUP(I34,入力制限シート!A$7:C$33,3,FALSE))","v":""}]
[null,null,null,null,null,null,null,null,null,{"$f":"IF(I35=\"\",\"\",VLOOKUP(I35,入力制限シート!A$7:C$33,2,FALSE))","v":""},{"$f":"IF(I35=\"\",\"\",VLOOKUP(I35,入力制限シート!A$7:C$33,3,FALSE))","v":""}]
[null,null,null,null,null,null,null,null,null,{"$f":"IF(I36=\"\",\"\",VLOOKUP(I36,入力制限シート!A$7:C$33,2,FALSE))","v":""},{"$f":"IF(I36=\"\",\"\",VLOOKUP(I36,入力制限シート!A$7:C$33,3,FALSE))","v":""}]
[null,null,null,null,null,null,null,null,null,{"$f":"IF(I37=\"\",\"\",VLOOKUP(I37,入力制限シート!A$7:C$33,2,FALSE))","v":""},{"$f":"IF(I37=\"\",\"\",VLOOKUP(I37,入力制限シート!A$7:C$33,3,FALSE))","v":""}]
[null,null,null,null,null,null,null,null,null,{"$f":"IF(I38=\"\",\"\",VLOOKUP(I38,入力制限シート!A$7:C$33,2,FALSE))","v":""},{"$f":"IF(I38=\"\",\"\",VLOOKUP(I38,入力制限シート!A$7:C$33,3,FALSE))","v":""}]
[null,null,null,null,null,null,null,null,null,{"$f":"IF(I39=\"\",\"\",VLOOKUP(I39,入力制限シート!A$7:C$33,2,FALSE))","v":""},{"$f":"IF(I39=\"\",\"\",VLOOKUP(I39,入力制限シート!A$7:C$33,3,FALSE))","v":""}]
[null,null,null,null,null,null,null,null,null,{"$f":"IF(I40=\"\",\"\",VLOOKUP(I40,入力制限シート!A$7:C$33,2,FALSE))","v":""},{"$f":"IF(I40=\"\",\"\",VLOOKUP(I40,入力制限シート!A$7:C$33,3,FALSE))","v":""}]
[null,null,null,null,null,null,null,null,null,{"$f":"IF(I41=\"\",\"\",VLOOKUP(I41,入力制限シート!A$7:C$33,2,FALSE))","v":""},{"$f":"IF(I41=\"\",\"\",VLOOKUP(I41,入力制限シート!A$7:C$33,3,FALSE))","v":""}]
[null,null,null,null,null,null,null,null,null,{"$f":"IF(I42=\"\",\"\",VLOOKUP(I42,入力制限シート!A$7:C$33,2,FALSE))","v":""},{"$f":"IF(I42=\"\",\"\",VLOOKUP(I42,入力制限シート!A$7:C$33,3,FALSE))","v":""}]
[null,null,null,null,null,null,null,null,null,{"$f":"IF(I43=\"\",\"\",VLOOKUP(I43,入力制限シート!A$7:C$33,2,FALSE))","v":""},{"$f":"IF(I43=\"\",\"\",VLOOKUP(I43,入力制限シート!A$7:C$33,3,FALSE))","v":""}]
[null,null,null,null,null,null,null,null,null,{"$f":"IF(I44=\"\",\"\",VLOOKUP(I44,入力制限シート!A$7:C$33,2,FALSE))","v":""},{"$f":"IF(I44=\"\",\"\",VLOOKUP(I44,入力制限シート!A$7:C$33,3,FALSE))","v":""}]
[null,null,null,null,null,null,null,null,null,{"$f":"IF(I45=\"\",\"\",VLOOKUP(I45,入力制限シート!A$7:C$33,2,FALSE))","v":""},{"$f":"IF(I45=\"\",\"\",VLOOKUP(I45,入力制限シート!A$7:C$33,3,FALSE))","v":""}]
[null,null,null,null,null,null,null,null,null,{"$f":"IF(I46=\"\",\"\",VLOOKUP(I46,入力制限シート!A$7:C$33,2,FALSE))","v":""},{"$f":"IF(I46=\"\",\"\",VLOOKUP(I46,入力制限シート!A$7:C$33,3,FALSE))","v":""}]
[null,null,null,null,null,null,null,null,null,{"$f":"IF(I47=\"\",\"\",VLOOKUP(I47,入力制限シート!A$7:C$33,2,FALSE))","v":""},{"$f":"IF(I47=\"\",\"\",VLOOKUP(I47,入力制限シート!A$7:C$33,3,FALSE))","v":""}]
[null,null,null,null,null,null,null,null,null,{"$f":"IF(I48=\"\",\"\",VLOOKUP(I48,入力制限シート!A$7:C$33,2,FALSE))","v":""},{"$f":"IF(I48=\"\",\"\",VLOOKUP(I48,入力制限シート!A$7:C$33,3,FALSE))","v":""}]
[null,null,null,null,null,null,null,null,null,{"$f":"IF(I49=\"\",\"\",VLOOKUP(I49,入力制限シート!A$7:C$33,2,FALSE))","v":""},{"$f":"IF(I49=\"\",\"\",VLOOKUP(I49,入力制限シート!A$7:C$33,3,FALSE))","v":""}]
[null,null,null,null,null,null,null,null,null,{"$f":"IF(I50=\"\",\"\",VLOOKUP(I50,入力制限シート!A$7:C$33,2,FALSE))","v":""},{"$f":"IF(I50=\"\",\"\",VLOOKUP(I50,入力制限シート!A$7:C$33,3,FALSE))","v":""}]
[null,null,null,null,null,null,null,null,null,{"$f":"IF(I51=\"\",\"\",VLOOKUP(I51,入力制限シート!A$7:C$33,2,FALSE))","v":""},{"$f":"IF(I51=\"\",\"\",VLOOKUP(I51,入力制限シート!A$7:C$33,3,FALSE))","v":""}]
[null,null,null,null,null,null,null,null,null,{"$f":"IF(I52=\"\",\"\",VLOOKUP(I52,入力制限シート!A$7:C$33,2,FALSE))","v":""},{"$f":"IF(I52=\"\",\"\",VLOOKUP(I52,入力制限シート!A$7:C$33,3,FALSE))","v":""}]
[null,null,null,null,null,null,null,null,null,{"$f":"IF(I53=\"\",\"\",VLOOKUP(I53,入力制限シート!A$7:C$33,2,FALSE))","v":""},{"$f":"IF(I53=\"\",\"\",VLOOKUP(I53,入力制限シート!A$7:C$33,3,FALSE))","v":""}]
[null,null,null,null,null,null,null,null,null,{"$f":"IF(I54=\"\",\"\",VLOOKUP(I54,入力制限シート!A$7:C$33,2,FALSE))","v":""},{"$f":"IF(I54=\"\",\"\",VLOOKUP(I54,入力制限シート!A$7:C$33,3,FALSE))","v":""}]
[null,null,null,null,null,null,null,null,null,{"$f":"IF(I55=\"\",\"\",VLOOKUP(I55,入力制限シート!A$7:C$33,2,FALSE))","v":""},{"$f":"IF(I55=\"\",\"\",VLOOKUP(I55,入力制限シート!A$7:C$33,3,FALSE))","v":""}]
[null,null,null,null,null,null,null,null,null,{"$f":"IF(I56=\"\",\"\",VLOOKUP(I56,入力制限シート!A$7:C$33,2,FALSE))","v":""},{"$f":"IF(I56=\"\",\"\",VLOOKUP(I56,入力制限シート!A$7:C$33,3,FALSE))","v":""}]
[null,null,null,null,null,null,null,null,null,{"$f":"IF(I57=\"\",\"\",VLOOKUP(I57,入力制限シート!A$7:C$33,2,FALSE))","v":""},{"$f":"IF(I57=\"\",\"\",VLOOKUP(I57,入力制限シート!A$7:C$33,3,FALSE))","v":""}]
[null,null,null,null,null,null,null,null,null,{"$f":"IF(I58=\"\",\"\",VLOOKUP(I58,入力制限シート!A$7:C$33,2,FALSE))","v":""},{"$f":"IF(I58=\"\",\"\",VLOOKUP(I58,入力制限シート!A$7:C$33,3,FALSE))","v":""}]
[null,null,null,null,null,null,null,null,null,{"$f":"IF(I59=\"\",\"\",VLOOKUP(I59,入力制限シート!A$7:C$33,2,FALSE))","v":""},{"$f":"IF(I59=\"\",\"\",VLOOKUP(I59,入力制限シート!A$7:C$33,3,FALSE))","v":""}]
[null,null,null,null,null,null,null,null,null,{"$f":"IF(I60=\"\",\"\",VLOOKUP(I60,入力制限シート!A$7:C$33,2,FALSE))","v":""},{"$f":"IF(I60=\"\",\"\",VLOOKUP(I60,入力制限シート!A$7:C$33,3,FALSE))","v":""}]
[null,null,null,null,null,null,null,null,null,{"$f":"IF(I61=\"\",\"\",VLOOKUP(I61,入力制限シート!A$7:C$33,2,FALSE))","v":""},{"$f":"IF(I61=\"\",\"\",VLOOKUP(I61,入力制限シート!A$7:C$33,3,FALSE))","v":""}]
[null,null,null,null,null,null,null,null,null,{"$f":"IF(I62=\"\",\"\",VLOOKUP(I62,入力制限シート!A$7:C$33,2,FALSE))","v":""},{"$f":"IF(I62=\"\",\"\",VLOOKUP(I62,入力制限シート!A$7:C$33,3,FALSE))","v":""}]
[null,null,null,null,null,null,null,null,null,{"$f":"IF(I63=\"\",\"\",VLOOKUP(I63,入力制限シート!A$7:C$33,2,FALSE))","v":""},{"$f":"IF(I63=\"\",\"\",VLOOKUP(I63,入力制限シート!A$7:C$33,3,FALSE))","v":""}]
[null,null,null,null,null,null,null,null,null,{"$f":"IF(I64=\"\",\"\",VLOOKUP(I64,入力制限シート!A$7:C$33,2,FALSE))","v":""},{"$f":"IF(I64=\"\",\"\",VLOOKUP(I64,入力制限シート!A$7:C$33,3,FALSE))","v":""}]
[null,null,null,null,null,null,null,null,null,{"$f":"IF(I65=\"\",\"\",VLOOKUP(I65,入力制限シート!A$7:C$33,2,FALSE))","v":""},{"$f":"IF(I65=\"\",\"\",VLOOKUP(I65,入力制限シート!A$7:C$33,3,FALSE))","v":""}]
[null,null,null,null,null,null,null,null,null,{"$f":"IF(I66=\"\",\"\",VLOOKUP(I66,入力制限シート!A$7:C$33,2,FALSE))","v":""},{"$f":"IF(I66=\"\",\"\",VLOOKUP(I66,入力制限シート!A$7:C$33,3,FALSE))","v":""}]
[null,null,null,null,null,null,null,null,null,{"$f":"IF(I67=\"\",\"\",VLOOKUP(I67,入力制限シート!A$7:C$33,2,FALSE))","v":""},{"$f":"IF(I67=\"\",\"\",VLOOKUP(I67,入力制限シート!A$7:C$33,3,FALSE))","v":""}]
[null,null,null,null,null,null,null,null,null,{"$f":"IF(I68=\"\",\"\",VLOOKUP(I68,入力制限シート!A$7:C$33,2,FALSE))","v":""},{"$f":"IF(I68=\"\",\"\",VLOOKUP(I68,入力制限シート!A$7:C$33,3,FALSE))","v":""}]
[null,null,null,null,null,null,null,null,null,{"$f":"IF(I69=\"\",\"\",VLOOKUP(I69,入力制限シート!A$7:C$33,2,FALSE))","v":""},{"$f":"IF(I69=\"\",\"\",VLOOKUP(I69,入力制限シート!A$7:C$33,3,FALSE))","v":""}]
[null,null,null,null,null,null,null,null,null,{"$f":"IF(I70=\"\",\"\",VLOOKUP(I70,入力制限シート!A$7:C$33,2,FALSE))","v":""},{"$f":"IF(I70=\"\",\"\",VLOOKUP(I70,入力制限シート!A$7:C$33,3,FALSE))","v":""}]
[null,null,null,null,null,null,null,null,null,{"$f":"IF(I71=\"\",\"\",VLOOKUP(I71,入力制限シート!A$7:C$33,2,FALSE))","v":""},{"$f":"IF(I71=\"\",\"\",VLOOKUP(I71,入力制限シート!A$7:C$33,3,FALSE))","v":""}]
[null,null,null,null,null,null,null,null,null,{"$f":"IF(I72=\"\",\"\",VLOOKUP(I72,入力制限シート!A$7:C$33,2,FALSE))","v":""},{"$f":"IF(I72=\"\",\"\",VLOOKUP(I72,入力制限シート!A$7:C$33,3,FALSE))","v":""}]
[null,null,null,null,null,null,null,null,null,{"$f":"IF(I73=\"\",\"\",VLOOKUP(I73,入力制限シート!A$7:C$33,2,FALSE))","v":""},{"$f":"IF(I73=\"\",\"\",VLOOKUP(I73,入力制限シート!A$7:C$33,3,FALSE))","v":""}]
[null,null,null,null,null,null,null,null,null,{"$f":"IF(I74=\"\",\"\",VLOOKUP(I74,入力制限シート!A$7:C$33,2,FALSE))","v":""},{"$f":"IF(I74=\"\",\"\",VLOOKUP(I74,入力制限シート!A$7:C$33,3,FALSE))","v":""}]
[null,null,null,null,null,null,null,null,null,{"$f":"IF(I75=\"\",\"\",VLOOKUP(I75,入力制限シート!A$7:C$33,2,FALSE))","v":""},{"$f":"IF(I75=\"\",\"\",VLOOKUP(I75,入力制限シート!A$7:C$33,3,FALSE))","v":""}]
[null,null,null,null,null,null,null,null,null,{"$f":"IF(I76=\"\",\"\",VLOOKUP(I76,入力制限シート!A$7:C$33,2,FALSE))","v":""},{"$f":"IF(I76=\"\",\"\",VLOOKUP(I76,入力制限シート!A$7:C$33,3,FALSE))","v":""}]
[null,null,null,null,null,null,null,null,null,{"$f":"IF(I77=\"\",\"\",VLOOKUP(I77,入力制限シート!A$7:C$33,2,FALSE))","v":""},{"$f":"IF(I77=\"\",\"\",VLOOKUP(I77,入力制限シート!A$7:C$33,3,FALSE))","v":""}]
[null,null,null,null,null,null,null,null,null,{"$f":"IF(I78=\"\",\"\",VLOOKUP(I78,入力制限シート!A$7:C$33,2,FALSE))","v":""},{"$f":"IF(I78=\"\",\"\",VLOOKUP(I78,入力制限シート!A$7:C$33,3,FALSE))","v":""}]
[null,null,null,null,null,null,null,null,null,{"$f":"IF(I79=\"\",\"\",VLOOKUP(I79,入力制限シート!A$7:C$33,2,FALSE))","v":""},{"$f":"IF(I79=\"\",\"\",VLOOKUP(I79,入力制限シート!A$7:C$33,3,FALSE))","v":""}]
[null,null,null,null,null,null,null,null,null,{"$f":"IF(I80=\"\",\"\",VLOOKUP(I80,入力制限シート!A$7:C$33,2,FALSE))","v":""},{"$f":"IF(I80=\"\",\"\",VLOOKUP(I80,入力制限シート!A$7:C$33,3,FALSE))","v":""}]
[null,null,null,null,null,null,null,null,null,{"$f":"IF(I81=\"\",\"\",VLOOKUP(I81,入力制限シート!A$7:C$33,2,FALSE))","v":""},{"$f":"IF(I81=\"\",\"\",VLOOKUP(I81,入力制限シート!A$7:C$33,3,FALSE))","v":""}]
[null,null,null,null,null,null,null,null,null,{"$f":"IF(I82=\"\",\"\",VLOOKUP(I82,入力制限シート!A$7:C$33,2,FALSE))","v":""},{"$f":"IF(I82=\"\",\"\",VLOOKUP(I82,入力制限シート!A$7:C$33,3,FALSE))","v":""}]
[null,null,null,null,null,null,null,null,null,{"$f":"IF(I83=\"\",\"\",VLOOKUP(I83,入力制限シート!A$7:C$33,2,FALSE))","v":""},{"$f":"IF(I83=\"\",\"\",VLOOKUP(I83,入力制限シート!A$7:C$33,3,FALSE))","v":""}]
[null,null,null,null,null,null,null,null,null,{"$f":"IF(I84=\"\",\"\",VLOOKUP(I84,入力制限シート!A$7:C$33,2,FALSE))","v":""},{"$f":"IF(I84=\"\",\"\",VLOOKUP(I84,入力制限シート!A$7:C$33,3,FALSE))","v":""}]
[null,null,null,null,null,null,null,null,null,{"$f":"IF(I85=\"\",\"\",VLOOKUP(I85,入力制限シート!A$7:C$33,2,FALSE))","v":""},{"$f":"IF(I85=\"\",\"\",VLOOKUP(I85,入力制限シート!A$7:C$33,3,FALSE))","v":""}]
[null,null,null,null,null,null,null,null,null,{"$f":"IF(I86=\"\",\"\",VLOOKUP(I86,入力制限シート!A$7:C$33,2,FALSE))","v":""},{"$f":"IF(I86=\"\",\"\",VLOOKUP(I86,入力制限シート!A$7:C$33,3,FALSE))","v":""}]
[null,null,null,null,null,null,null,null,null,{"$f":"IF(I87=\"\",\"\",VLOOKUP(I87,入力制限シート!A$7:C$33,2,FALSE))","v":""},{"$f":"IF(I87=\"\",\"\",VLOOKUP(I87,入力制限シート!A$7:C$33,3,FALSE))","v":""}]
[null,null,null,null,null,null,null,null,null,{"$f":"IF(I88=\"\",\"\",VLOOKUP(I88,入力制限シート!A$7:C$33,2,FALSE))","v":""},{"$f":"IF(I88=\"\",\"\",VLOOKUP(I88,入力制限シート!A$7:C$33,3,FALSE))","v":""}]
[null,null,null,null,null,null,null,null,null,{"$f":"IF(I89=\"\",\"\",VLOOKUP(I89,入力制限シート!A$7:C$33,2,FALSE))","v":""},{"$f":"IF(I89=\"\",\"\",VLOOKUP(I89,入力制限シート!A$7:C$33,3,FALSE))","v":""}]
[null,null,null,null,null,null,null,null,null,{"$f":"IF(I90=\"\",\"\",VLOOKUP(I90,入力制限シート!A$7:C$33,2,FALSE))","v":""},{"$f":"IF(I90=\"\",\"\",VLOOKUP(I90,入力制限シート!A$7:C$33,3,FALSE))","v":""}]
[null,null,null,null,null,null,null,null,null,{"$f":"IF(I91=\"\",\"\",VLOOKUP(I91,入力制限シート!A$7:C$33,2,FALSE))","v":""},{"$f":"IF(I91=\"\",\"\",VLOOKUP(I91,入力制限シート!A$7:C$33,3,FALSE))","v":""}]
[null,null,null,null,null,null,null,null,null,{"$f":"IF(I92=\"\",\"\",VLOOKUP(I92,入力制限シート!A$7:C$33,2,FALSE))","v":""},{"$f":"IF(I92=\"\",\"\",VLOOKUP(I92,入力制限シート!A$7:C$33,3,FALSE))","v":""}]
[null,null,null,null,null,null,null,null,null,{"$f":"IF(I93=\"\",\"\",VLOOKUP(I93,入力制限シート!A$7:C$33,2,FALSE))","v":""},{"$f":"IF(I93=\"\",\"\",VLOOKUP(I93,入力制限シート!A$7:C$33,3,FALSE))","v":""}]
[null,null,null,null,null,null,null,null,null,{"$f":"IF(I94=\"\",\"\",VLOOKUP(I94,入力制限シート!A$7:C$33,2,FALSE))","v":""},{"$f":"IF(I94=\"\",\"\",VLOOKUP(I94,入力制限シート!A$7:C$33,3,FALSE))","v":""}]
[null,null,null,null,null,null,null,null,null,{"$f":"IF(I95=\"\",\"\",VLOOKUP(I95,入力制限シート!A$7:C$33,2,FALSE))","v":""},{"$f":"IF(I95=\"\",\"\",VLOOKUP(I95,入力制限シート!A$7:C$33,3,FALSE))","v":""}]
[null,null,null,null,null,null,null,null,null,{"$f":"IF(I96=\"\",\"\",VLOOKUP(I96,入力制限シート!A$7:C$33,2,FALSE))","v":""},{"$f":"IF(I96=\"\",\"\",VLOOKUP(I96,入力制限シート!A$7:C$33,3,FALSE))","v":""}]
[null,null,null,null,null,null,null,null,null,{"$f":"IF(I97=\"\",\"\",VLOOKUP(I97,入力制限シート!A$7:C$33,2,FALSE))","v":""},{"$f":"IF(I97=\"\",\"\",VLOOKUP(I97,入力制限シート!A$7:C$33,3,FALSE))","v":""}]
[null,null,null,null,null,null,null,null,null,{"$f":"IF(I98=\"\",\"\",VLOOKUP(I98,入力制限シート!A$7:C$33,2,FALSE))","v":""},{"$f":"IF(I98=\"\",\"\",VLOOKUP(I98,入力制限シート!A$7:C$33,3,FALSE))","v":""}]
[null,null,null,null,null,null,null,null,null,{"$f":"IF(I99=\"\",\"\",VLOOKUP(I99,入力制限シート!A$7:C$33,2,FALSE))","v":""},{"$f":"IF(I99=\"\",\"\",VLOOKUP(I99,入力制限シート!A$7:C$33,3,FALSE))","v":""}]
[null,null,null,null,null,null,null,null,null,{"$f":"IF(I100=\"\",\"\",VLOOKUP(I100,入力制限シート!A$7:C$33,2,FALSE))","v":""},{"$f":"IF(I100=\"\",\"\",VLOOKUP(I100,入力制限シート!A$7:C$33,3,FALSE))","v":""}]

{"sheet":"調査用紙","index":3,"n_rows":36,"n_cols":7,"rows_kept":36,"cut":false,"hidden":false,"merged":[[5,3,5,5],[0,0,0,6]]}
["全国鳥類繁殖分布調査　調査用紙"]
[]
["　　　　年　　　月　　　日　　　　　：　　　～　　　：　　　　　　　　　天候"]
["調査ルート番号　　　　　　　　　　　　　",null,null,null,null,"調査者名"]
[]
[null,null,null,"個体数"]
["調査種別","時刻","種名","50ｍ内","以遠","幼","繁殖行動"]
[null,null,null,null,null,null,"さえずり・餌運搬・"]
[null,null,null,null,null,null,"さえずり・餌運搬・"]
[null,null,null,null,null,null,"さえずり・餌運搬・"]
[null,null,null,null,null,null,"さえずり・餌運搬・"]
[null,null,null,null,null,null,"さえずり・餌運搬・"]
[null,null,null,null,null,null,"さえずり・餌運搬・"]
[null,null,null,null,null,null,"さえずり・餌運搬・"]
[null,null,null,null,null,null,"さえずり・餌運搬・"]
[null,null,null,null,null,null,"さえずり・餌運搬・"]
[null,null,null,null,null,null,"さえずり・餌運搬・"]
[null,null,null,null,null,null,"さえずり・餌運搬・"]
[null,null,null,null,null,null,"さえずり・餌運搬・"]
[null,null,null,null,null,null,"さえずり・餌運搬・"]
[null,null,null,null,null,null,"さえずり・餌運搬・"]
[null,null,null,null,null,null,"さえずり・餌運搬・"]
[null,null,null,null,null,null,"さえずり・餌運搬・"]
[null,null,null,null,null,null,"さえずり・餌運搬・"]
[null,null,null,null,null,null,"さえずり・餌運搬・"]
[null,null,null,null,null,null,"さえずり・餌運搬・"]
[null,null,null,null,null,null,"さえずり・餌運搬・"]
[null,null,null,null,null,null,"さえずり・餌運搬・"]
[null,null,null,null,null,null,"さえずり・餌運搬・"]
[null,null,null,null,null,null,"さえずり・餌運搬・"]
[null,null,null,null,null,null,"さえずり・餌運搬・"]
[null,null,null,null,null,null,"さえずり・餌運搬・"]
[null,null,null,null,null,null,"さえずり・餌運搬・"]
[null,null,null,null,null,null,"さえずり・餌運搬・"]
[null,null,null,null,null,null,"さえずり・餌運搬・"]
[null,null,null,null,null,null,"さえずり・餌運搬・"]

{"sheet":"入力制限シート","index":4,"n_rows":717,"n_cols":6,"rows_kept":717,"cut":false,"hidden":false,"merged":[]}
[null,null,null,null,"エゾライチョウ","Tetrastes bonasia"]
["ルート",null,null,null,"ライチョウ","Lagopus muta"]
["定点１",null,null,null,"ウズラ","Coturnix japonica"]
["定点２",null,null,null,"ヤマドリ","Syrmaticus soemmerringii"]
["定点３",null,null,null,"キジ","Phasianus colchicus"]
[null,null,null,null,"リュウキュウガモ","Dendrocygna javanica"]
["成鳥が巣あるいは巣のあるらしい所にくり返し出入りしている",10,"A",null,"サカツラガン","Anser cygnoides"]
["成鳥が抱卵又は抱雛している。あるいはしているようだ",11,"A",null,"ヒシクイ","Anser fabalis"]
["成鳥が巣のあるらしい所にとびこむと同時にヒナの餌をねだる声がきかれた",12,"A",null,"オオヒシクイ","Anser fabalis middendorffii"]
["成鳥がヒナのフンを運搬している",13,"A",null,"ハイイロガン","Anser anser"]
["成鳥が巣のヒナに餌を運搬している（餌をくわえたまま観察者を警戒し移動する気配のない場合を含む）",14,"A",null,"マガン","Anser albifrons"]
["擬傷をみた",15,"A",null,"カリガネ","Anser erythropus"]
["巣立ち後の巣がある。ただし2016 年以降に使用された巣であること",16,"A",null,"インドガン","Anser indicus"]
["卵のある巣をみた",17,"A",null,"ハクガン","Anser caerulescens"]
["成鳥がおちついてすわっている巣の近くで、その種が営巣し得る環境でその種の卵殻がみつかった",18,"A",null,"ミカドガン","Anser canagicus"]
["ヒナのいる巣を見た",19,"A",null,"シジュウカラガン","Branta hutchinsii"]
["ヒナの声をきいた",20,"A",null,"コクガン","Branta bernicla"]
["巣からほとんど移動していないと思われる巣立ちビナを見た",21,"A",null,"コブハクチョウ","Cygnus olor"]
["その種が営巣し得る環境で繁殖期に、その種のさえずり（キツツキ類のドラミングを含める）を聞いた。ただし、その鳥が冬鳥、旅鳥かもしれない時は除く",30,"B",null,"ナキハクチョウ","Cygnus buccinator"]
["求愛行動をみた。ただし、その鳥が冬鳥、旅鳥かもしれない時は除く",31,"B",null,"コハクチョウ","Cygnus columbianus"]
["交尾行動をみた。ただし、その鳥が冬鳥、旅鳥かもしれない時は除く",32,"B",null,"アメリカコハクチョウ"]
["威嚇行動、警戒行動により、付近に巣又はヒナの存在が考えられる",33,"B",null,"オオハクチョウ","Cygnus cygnus"]
["巣があると思われる所に成鳥が訪れた。ただし、そこが塒（ねぐら）である場合は除く",34,"B",null,"ツクシガモ","Tadorna tadorna"]
["造巣行動（巣穴堀りを含む）を見た",35,"B",null,"アカツクシガモ","Tadorna ferruginea"]
["成鳥が巣材を運搬している。ただし、明らかに周囲で巣を構えていると思われる場合に限る",36,"B",null,"カンムリツクシガモ","Tadorna cristata"]
["成鳥がヒナへの餌を運搬しているが、巣が周囲にあるかどうかわからない",37,"B",null,"オシドリ","Aix galericulata"]
["巣を発見したが、卵、ヒナともなく、成鳥がそこに来るのを認めなかった",38,"B",null,"ナンキンオシ","Nettapus coromandelianus"]
["かなり移動可能と思われる巣立ちビナを見た",39,"B",null,"オカヨシガモ","Anas strepera"]
["家族群を見た",40,"B",null,"ヨシガモ","Anas falcata"]
["その種が営巣し得る環境で繁殖期にその種を確認したが、他には繁殖の兆候が認められない。ただし冬鳥または旅鳥は過去にその地方で繁殖の記録があるもの",50,"C",null,"ヒドリガモ","Anas penelope"]
["繁殖期に鳴き声を確認したが、さえずりかどうかわからない",51,"C",null,"アメリカヒドリ","Anas americana"]
["その種の生息を確認したが、その周囲にその種が営巣し得る環境はないと思われる。例）アマツバメ類、ワシタカ類の上空通過を確認したが、周囲には営巣可能な環境はないと考えられる場合",60,"D",null,"マガモ","Anas platyrhynchos"]
["冬鳥または旅鳥で、繁殖期に生息がみられたが、過去にその地方で繁殖の記録がないもの",61,"D",null,"アカノドカルガモ","Anas luzonica"]
[null,null,null,null,"カルガモ","Anas zonorhyncha"]
[null,null,null,null,"ミカヅキシマアジ","Anas discors"]
[null,null,null,null,"ハシビロガモ","Anas clypeata"]
[null,null,null,null,"オナガガモ","Anas acuta"]
[null,null,null,null,"シマアジ","Anas querquedula"]
[null,null,null,null,"トモエガモ","Anas formosa"]
[null,null,null,null,"コガモ","Anas crecca"]
[null,null,null,null,"アカハシハジロ","Netta rufina"]
[null,null,null,null,"オオホシハジロ","Aythya valisineria"]
[null,null,null,null,"アメリカホシハジロ","Aythya americana"]
[null,null,null,null,"ホシハジロ","Aythya ferina"]
[null,null,null,null,"アカハジロ","Aythya baeri"]
[null,null,null,null,"メジロガモ","Aythya nyroca"]
[null,null,null,null,"クビワキンクロ","Aythya collaris"]
[null,null,null,null,"キンクロハジロ","Aythya fuligula"]
[null,null,null,null,"スズガモ","Aythya marila"]
[null,null,null,null,"コスズガモ","Aythya affinis"]
[null,null,null,null,"コケワタガモ","Polysticta stelleri"]
[null,null,null,null,"ケワタガモ","Somateria spectabilis"]
[null,null,null,null,"シノリガモ","Histrionicus histrionicus"]
[null,null,null,null,"アラナミキンクロ","Melanitta perspicillata"]
[null,null,null,null,"ビロードキンクロ","Melanitta fusca"]
[null,null,null,null,"クロガモ","Melanitta americana"]
[null,null,null,null,"コオリガモ","Clangula hyemalis"]
[null,null,null,null,"ヒメハジロ","Bucephala albeola"]
[null,null,null,null,"ホオジロガモ","Bucephala clangula"]
[null,null,null,null,"ミコアイサ","Mergellus albellus"]
[null,null,null,null,"カワアイサ","Mergus merganser"]
[null,null,null,null,"ウミアイサ","Mergus serrator"]
[null,null,null,null,"コウライアイサ","Mergus squamatus"]
[null,null,null,null,"カイツブリ","Tachybaptus ruficollis"]
[null,null,null,null,"アカエリカイツブリ","Podiceps grisegena"]
[null,null,null,null,"カンムリカイツブリ","Podiceps cristatus"]
[null,null,null,null,"ミミカイツブリ","Podiceps auritus"]
[null,null,null,null,"ハジロカイツブリ","Podiceps nigricollis"]
[null,null,null,null,"アカオネッタイチョウ","Phaethon rubricauda"]
[null,null,null,null,"シラオネッタイチョウ","Phaethon lepturus"]
[null,null,null,null,"サケイ","Syrrhaptes paradoxus"]
[null,null,null,null,"ヒメモリバト","Columba oenas"]
[null,null,null,null,"カラスバト","Columba janthina"]
[null,null,null,null,"オガサワラカラスバト","Columba versicolor"]
[null,null,null,null,"リュウキュウカラスバト","Columba jouyi"]
[null,null,null,null,"キジバト","Streptopelia orientalis"]
[null,null,null,null,"シラコバト","Streptopelia decaocto"]
[null,null,null,null,"ベニバト","Streptopelia tranquebarica"]
[null,null,null,null,"キンバト","Chalcophaps indica"]
[null,null,null,null,"アオバト","Treron sieboldii"]
[null,null,null,null,"ズアカアオバト","Treron formosae"]
[null,null,null,null,"クロアゴヒメアオバト","Ptilinopus leclancheri"]
[null,null,null,null,"アビ","Gavia stellata"]
[null,null,null,null,"オオハム","Gavia arctica"]
[null,null,null,null,"シロエリオオハム","Gavia pacifica"]
[null,null,null,null,"ハシグロアビ","Gavia immer"]
[null,null,null,null,"ハシジロアビ","Gavia adamsii"]
[null,null,null,null,"コアホウドリ","Phoebastria immutabilis"]
[null,null,null,null,"クロアシアホウドリ","Phoebastria nigripes"]
[null,null,null,null,"アホウドリ","Phoebastria albatrus"]
[null,null,null,null,"フルマカモメ","Fulmarus glacialis"]
[null,null,null,null,"ハジロミズナギドリ","Pterodroma solandri"]
[null,null,null,null,"オオシロハラミズナギドリ","Pterodroma externa"]
[null,null,null,null,"カワリシロハラミズナギドリ","Pterodroma neglecta"]
[null,null,null,null,"ハワイシロハラミズナギドリ","Pterodroma phaeopygia"]
[null,null,null,null,"マダラシロハラミズナギドリ","Pterodroma inexpectata"]
[null,null,null,null,"ハグロシロハラミズナギドリ","Pterodroma nigripennis"]
[null,null,null,null,"シロハラミズナギドリ","Pterodroma hypoleuca"]
[null,null,null,null,"ヒメシロハラミズナギドリ","Pterodroma longirostris"]
[null,null,null,null,"オオミズナギドリ","Calonectris leucomelas"]
[null,null,null,null,"オナガミズナギドリ","Puffinus pacificus"]
[null,null,null,null,"ミナミオナガミズナギドリ","Puffinus bulleri"]
[null,null,null,null,"ハイイロミズナギドリ","Puffinus griseus"]
[null,null,null,null,"ハシボソミズナギドリ","Puffinus tenuirostris"]
[null,null,null,null,"シロハラアカアシミズナギドリ","Puffinus creatopus"]
[null,null,null,null,"アカアシミズナギドリ","Puffinus carneipes"]
[null,null,null,null,"コミズナギドリ","Puffinus nativitatis"]
[null,null,null,null,"マンクスミズナギドリ","Puffinus puffinus"]
[null,null,null,null,"ハワイセグロミズナギドリ","Puffinus newelli"]
[null,null,null,null,"セグロミズナギドリ","Puffinus lherminieri"]
[null,null,null,null,"オガサワラヒメミズナギドリ","Puffinus bryani"]
[null,null,null,null,"アナドリ","Bulweria bulwerii"]
[null,null,null,null,"アシナガウミツバメ","Oceanites oceanicus"]
[null,null,null,null,"クロコシジロウミツバメ","Oceanodroma castro"]
[null,null,null,null,"ヒメクロウミツバメ","Oceanodroma monorhis"]
[null,null,null,null,"コシジロウミツバメ","Oceanodroma leucorhoa"]
[null,null,null,null,"オーストンウミツバメ","Oceanodroma tristrami"]
[null,null,null,null,"クロウミツバメ","Oceanodroma matsudairae"]
[null,null,null,null,"ハイイロウミツバメ","Oceanodroma furcata"]
[null,null,null,null,"ナベコウ","Ciconia nigra"]
[null,null,null,null,"コウノトリ","Ciconia boyciana"]
[null,null,null,null,"オオグンカンドリ","Fregata minor"]
[null,null,null,null,"コグンカンドリ","Fregata ariel"]
[null,null,null,null,"アオツラカツオドリ","Sula dactylatra"]
[null,null,null,null,"アカアシカツオドリ","Sula sula"]
[null,null,null,null,"カツオドリ","Sula leucogaster"]
[null,null,null,null,"ヒメウ","Phalacrocorax pelagicus"]
[null,null,null,null,"チシマウガラス","Phalacrocorax urile"]
[null,null,null,null,"カワウ","Phalacrocorax carbo"]
[null,null,null,null,"ウミウ","Phalacrocorax capillatus"]
[null,null,null,null,"モモイロペリカン","Pelecanus onocrotalus"]
[null,null,null,null,"ホシバシペリカン","Pelecanus philippensis"]
[null,null,null,null,"ハイイロペリカン","Pelecanus crispus"]
[null,null,null,null,"サンカノゴイ","Botaurus stellaris"]
[null,null,null,null,"ヨシゴイ","Ixobrychus sinensis"]
[null,null,null,null,"オオヨシゴイ","Ixobrychus eurhythmus"]
[null,null,null,null,"リュウキュウヨシゴイ","Ixobrychus cinnamomeus"]
[null,null,null,null,"タカサゴクロサギ","Ixobrychus flavicollis"]
[null,null,null,null,"ミゾゴイ","Gorsachius goisagi"]
[null,null,null,null,"ズグロミゾゴイ","Gorsachius melanolophus"]
[null,null,null,null,"ゴイサギ","Nycticorax nycticorax"]
[null,null,null,null,"ハシブトゴイ","Nycticorax caledonicus"]
[null,null,null,null,"ササゴイ","Butorides striata"]
[null,null,null,null,"アカガシラサギ","Ardeola bacchus"]
[null,null,null,null,"アマサギ","Bubulcus ibis"]
[null,null,null,null,"アオサギ","Ardea cinerea"]
[null,null,null,null,"ムラサキサギ","Ardea purpurea"]
[null,null,null,null,"ダイサギ","Ardea alba"]
[null,null,null,null,"チュウサギ","Egretta intermedia"]
[null,null,null,null,"コサギ","Egretta garzetta"]
[null,null,null,null,"クロサギ","Egretta sacra"]
[null,null,null,null,"カラシラサギ","Egretta eulophotes"]
[null,null,null,null,"クロトキ","Threskiornis melanocephalus"]
[null,null,null,null,"トキ","Nipponia nippon"]
[null,null,null,null,"ヘラサギ","Platalea leucorodia"]
[null,null,null,null,"クロツラヘラサギ","Platalea minor"]
[null,null,null,null,"ソデグロヅル","Grus leucogeranus"]
[null,null,null,null,"カナダヅル","Grus canadensis"]
[null,null,null,null,"マナヅル","Grus vipio"]
[null,null,null,null,"タンチョウ","Grus japonensis"]
[null,null,null,null,"クロヅル","Grus grus"]
[null,null,null,null,"ナベヅル","Grus monacha"]
[null,null,null,null,"アネハヅル","Anthropoides virgo"]
[null,null,null,null,"シマクイナ","Coturnicops exquisitus"]
[null,null,null,null,"オオクイナ","Rallina eurizonoides"]
[null,null,null,null,"ヤンバルクイナ","Gallirallus okinawae"]
[null,null,null,null,"ミナミクイナ","Gallirallus striatus"]
[null,null,null,null,"クイナ","Rallus aquaticus"]
[null,null,null,null,"シロハラクイナ","Amaurornis phoenicurus"]
[null,null,null,null,"ヒメクイナ","Porzana pusilla"]
[null,null,null,null,"コモンクイナ","Porzana porzana"]
[null,null,null,null,"ヒクイナ","Porzana fusca"]
[null,null,null,null,"コウライクイナ","Porzana paykullii"]
[null,null,null,null,"マミジロクイナ","Porzana cinerea"]
[null,null,null,null,"ツルクイナ","Gallicrex cinerea"]
[null,null,null,null,"バン","Gallinula chloropus"]
[null,null,null,null,"オオバン","Fulica atra"]
[null,null,null,null,"ノガン","Otis tarda"]
[null,null,null,null,"ヒメノガン","Tetrax tetrax"]
[null,null,null,null,"バンケン","Centropus bengalensis"]
[null,null,null,null,"カンムリカッコウ","Clamator coromandus"]
[null,null,null,null,"オニカッコウ","Eudynamys scolopaceus"]
[null,null,null,null,"キジカッコウ","Urodynamis taitensis"]
[null,null,null,null,"オウチュウカッコウ","Surniculus lugubris"]
[null,null,null,null,"オオジュウイチ","Hierococcyx sparverioides"]
[null,null,null,null,"ジュウイチ","Hierococcyx hyperythrus"]
[null,null,null,null,"ホトトギス","Cuculus poliocephalus"]
[null,null,null,null,"セグロカッコウ","Cuculus micropterus"]
[null,null,null,null,"ツツドリ","Cuculus optatus"]
[null,null,null,null,"カッコウ","Cuculus canorus"]
[null,null,null,null,"ヨタカ","Caprimulgus indicus"]
[null,null,null,null,"ヒマラヤアナツバメ","Aerodramus brevirostris"]
[null,null,null,null,"ハリオアマツバメ","Hirundapus caudacutus"]
[null,null,null,null,"アマツバメ","Apus pacificus"]
[null,null,null,null,"ヒメアマツバメ","Apus nipalensis"]
[null,null,null,null,"タゲリ","Vanellus vanellus"]
[null,null,null,null,"ケリ","Vanellus cinereus"]
[null,null,null,null,"ヨーロッパムナグロ","Pluvialis apricaria"]
[null,null,null,null,"ムナグロ","Pluvialis fulva"]
[null,null,null,null,"アメリカムナグロ","Pluvialis dominica"]
[null,null,null,null,"ダイゼン","Pluvialis squatarola"]
[null,null,null,null,"ハジロコチドリ","Charadrius hiaticula"]
[null,null,null,null,"ミズカキチドリ","Charadrius semipalmatus"]
[null,null,null,null,"イカルチドリ","Charadrius placidus"]
[null,null,null,null,"コチドリ","Charadrius dubius"]
[null,null,null,null,"シロチドリ","Charadrius alexandrinus"]
[null,null,null,null,"メダイチドリ","Charadrius mongolus"]
[null,null,null,null,"オオメダイチドリ","Charadrius leschenaultii"]
[null,null,null,null,"オオチドリ","Charadrius veredus"]
[null,null,null,null,"コバシチドリ","Charadrius morinellus"]
[null,null,null,null,"ミヤコドリ","Haematopus ostralegus"]
[null,null,null,null,"セイタカシギ","Himantopus himantopus"]
[null,null,null,null,"ソリハシセイタカシギ","Recurvirostra avosetta"]
[null,null,null,null,"ヤマシギ","Scolopax rusticola"]
[null,null,null,null,"アマミヤマシギ","Scolopax mira"]
[null,null,null,null,"コシギ","Lymnocryptes minimus"]
[null,null,null,null,"アオシギ","Gallinago solitaria"]
[null,null,null,null,"オオジシギ","Gallinago hardwickii"]
[null,null,null,null,"ハリオシギ","Gallinago stenura"]
[null,null,null,null,"チュウジシギ","Gallinago megala"]
[null,null,null,null,"タシギ","Gallinago gallinago"]
[null,null,null,null,"アメリカオオハシシギ","Limnodromus griseus"]
[null,null,null,null,"オオハシシギ","Limnodromus scolopaceus"]
[null,null,null,null,"シベリアオオハシシギ","Limnodromus semipalmatus"]
[null,null,null,null,"オグロシギ","Limosa limosa"]
[null,null,null,null,"アメリカオグロシギ","Limosa haemastica"]
[null,null,null,null,"オオソリハシシギ","Limosa lapponica"]
[null,null,null,null,"コシャクシギ","Numenius minutus"]
[null,null,null,null,"チュウシャクシギ","Numenius phaeopus"]
[null,null,null,null,"ハリモモチュウシャク","Numenius tahitiensis"]
[null,null,null,null,"シロハラチュウシャクシギ","Numenius tenuirostris"]
[null,null,null,null,"ダイシャクシギ","Numenius arquata"]
[null,null,null,null,"ホウロクシギ","Numenius madagascariensis"]
[null,null,null,null,"ツルシギ","Tringa erythropus"]
[null,null,null,null,"アカアシシギ","Tringa totanus"]
[null,null,null,null,"コアオアシシギ","Tringa stagnatilis"]
[null,null,null,null,"アオアシシギ","Tringa nebularia"]
[null,null,null,null,"カラフトアオアシシギ","Tringa guttifer"]
[null,null,null,null,"オオキアシシギ","Tringa melanoleuca"]
[null,null,null,null,"コキアシシギ","Tringa flavipes"]
[null,null,null,null,"クサシギ","Tringa ochropus"]
[null,null,null,null,"タカブシギ","Tringa glareola"]
[null,null,null,null,"キアシシギ","Heteroscelus brevipes"]
[null,null,null,null,"メリケンキアシシギ","Heteroscelus incanus"]
[null,null,null,null,"ソリハシシギ","Xenus cinereus"]
[null,null,null,null,"イソシギ","Actitis hypoleucos"]
[null,null,null,null,"アメリカイソシギ","Actitis macularius"]
[null,null,null,null,"キョウジョシギ","Arenaria interpres"]
[null,null,null,null,"オバシギ","Calidris tenuirostris"]
[null,null,null,null,"コオバシギ","Calidris canutus"]
[null,null,null,null,"ミユビシギ","Calidris alba"]
[null,null,null,null,"ヒメハマシギ","Calidris mauri"]
[null,null,null,null,"トウネン","Calidris ruficollis"]
[null,null,null,null,"ヨーロッパトウネン","Calidris minuta"]
[null,null,null,null,"オジロトウネン","Calidris temminckii"]
[null,null,null,null,"ヒバリシギ","Calidris subminuta"]
[null,null,null,null,"コシジロウズラシギ","Calidris fuscicollis"]
[null,null,null,null,"ヒメウズラシギ","Calidris bairdii"]
[null,null,null,null,"アメリカウズラシギ","Calidris melanotos"]
[null,null,null,null,"ウズラシギ","Calidris acuminata"]
[null,null,null,null,"サルハマシギ","Calidris ferruginea"]
[null,null,null,null,"チシマシギ","Calidris ptilocnemis"]
[null,null,null,null,"ハマシギ","Calidris alpina"]
[null,null,null,null,"アシナガシギ","Calidris himantopus"]
[null,null,null,null,"ヘラシギ","Eurynorhynchus pygmeus"]
[null,null,null,null,"キリアイ","Limicola falcinellus"]
[null,null,null,null,"コモンシギ","Tryngites subruficollis"]
[null,null,null,null,"エリマキシギ","Philomachus pugnax"]
[null,null,null,null,"アメリカヒレアシシギ","Phalaropus tricolor"]
[null,null,null,null,"アカエリヒレアシシギ","Phalaropus lobatus"]
[null,null,null,null,"ハイイロヒレアシシギ","Phalaropus fulicarius"]
[null,null,null,null,"レンカク","Hydrophasianus chirurgus"]
[null,null,null,null,"タマシギ","Rostratula benghalensis"]
[null,null,null,null,"ミフウズラ","Turnix suscitator"]
[null,null,null,null,"ツバメチドリ","Glareola maldivarum"]
[null,null,null,null,"クロアジサシ","Anous stolidus"]
[null,null,null,null,"ヒメクロアジサシ","Anous minutus"]
[null,null,null,null,"ハイイロアジサシ","Procelsterna cerulea"]
[null,null,null,null,"シロアジサシ","Gygis alba"]
[null,null,null,null,"ミツユビカモメ","Rissa tridactyla"]
[null,null,null,null,"アカアシミツユビカモメ","Rissa brevirostris"]
[null,null,null,null,"ゾウゲカモメ","Pagophila eburnea"]
[null,null,null,null,"クビワカモメ","Xema sabini"]
[null,null,null,null,"ヒメクビワカモメ","Rhodostethia rosea"]
[null,null,null,null,"ハシボソカモメ","Larus genei"]
[null,null,null,null,"ボナパルトカモメ","Larus philadelphia"]
[null,null,null,null,"チャガシラカモメ","Larus brunnicephalus"]
[null,null,null,null,"ユリカモメ","Larus ridibundus"]
[null,null,null,null,"ズグロカモメ","Larus saundersi"]
[null,null,null,null,"ヒメカモメ","Larus minutus"]
[null,null,null,null,"ワライカモメ","Larus atricilla"]
[null,null,null,null,"アメリカズグロカモメ","Larus pipixcan"]
[null,null,null,null,"ゴビズキンカモメ","Larus relictus"]
[null,null,null,null,"オオズグロカモメ","Larus ichthyaetus"]
[null,null,null,null,"ウミネコ","Larus crassirostris"]
[null,null,null,null,"カモメ","Larus canus"]
[null,null,null,null,"ワシカモメ","Larus glaucescens"]
[null,null,null,null,"シロカモメ","Larus hyperboreus"]
[null,null,null,null,"アイスランドカモメ","Larus glaucoides"]
[null,null,null,null,"カナダカモメ","Larus thayeri"]
[null,null,null,null,"セグロカモメ","Larus argentatus"]
[null,null,null,null,"キアシセグロカモメ","Larus cachinnans"]
[null,null,null,null,"オオセグロカモメ","Larus schistisagus"]
[null,null,null,null,"ニシセグロカモメ","Larus fuscus"]
[null,null,null,null,"ハシブトアジサシ","Gelochelidon nilotica"]
[null,null,null,null,"オニアジサシ","Sterna caspia"]
[null,null,null,null,"オオアジサシ","Sterna bergii"]
[null,null,null,null,"ベンガルアジサシ","Sterna bengalensis"]
[null,null,null,null,"コアジサシ","Sterna albifrons"]
[null,null,null,null,"コシジロアジサシ","Sterna aleutica"]
[null,null,null,null,"ナンヨウマミジロアジサシ","Sterna lunata"]
[null,null,null,null,"マミジロアジサシ","Sterna anaethetus"]
[null,null,null,null,"セグロアジサシ","Sterna fuscata"]
[null,null,null,null,"ベニアジサシ","Sterna dougallii"]
[null,null,null,null,"エリグロアジサシ","Sterna sumatrana"]
[null,null,null,null,"アジサシ","Sterna hirundo"]
[null,null,null,null,"キョクアジサシ","Sterna paradisaea"]
[null,null,null,null,"クロハラアジサシ","Chlidonias hybrida"]
[null,null,null,null,"ハジロクロハラアジサシ","Chlidonias leucopterus"]
[null,null,null,null,"ハシグロクロハラアジサシ","Chlidonias niger"]
[null,null,null,null,"オオトウゾクカモメ","Stercorarius maccormicki"]
[null,null,null,null,"トウゾクカモメ","Stercorarius pomarinus"]
[null,null,null,null,"クロトウゾクカモメ","Stercorarius parasiticus"]
[null,null,null,null,"シロハラトウゾクカモメ","Stercorarius longicaudus"]
[null,null,null,null,"ヒメウミスズメ","Alle alle"]
[null,null,null,null,"ハシブトウミガラス","Uria lomvia"]
[null,null,null,null,"ウミガラス","Uria aalge"]
[null,null,null,null,"オオハシウミガラス","Alca torda"]
[null,null,null,null,"ウミバト","Cepphus columba"]
[null,null,null,null,"ケイマフリ","Cepphus carbo"]
[null,null,null,null,"マダラウミスズメ","Brachyramphus perdix"]
[null,null,null,null,"ウミスズメ","Synthliboramphus antiquus"]
[null,null,null,null,"カンムリウミスズメ","Synthliboramphus wumizusume"]
[null,null,null,null,"ウミオウム","Aethia psittacula"]
[null,null,null,null,"コウミスズメ","Aethia pusilla"]
[null,null,null,null,"シラヒゲウミスズメ","Aethia pygmaea"]
[null,null,null,null,"エトロフウミスズメ","Aethia cristatella"]
[null,null,null,null,"ウトウ","Cerorhinca monocerata"]
[null,null,null,null,"ツノメドリ","Fratercula corniculata"]
[null,null,null,null,"エトピリカ","Fratercula cirrhata"]
[null,null,null,null,"ミサゴ","Pandion haliaetus"]
[null,null,null,null,"ハチクマ","Pernis ptilorhynchus"]
[null,null,null,null,"カタグロトビ","Elanus caeruleus"]
[null,null,null,null,"トビ","Milvus migrans"]
[null,null,null,null,"オジロワシ","Haliaeetus albicilla"]
[null,null,null,null,"ハクトウワシ","Haliaeetus leucocephalus"]
[null,null,null,null,"オオワシ","Haliaeetus pelagicus"]
[null,null,null,null,"クロハゲワシ","Aegypius monachus"]
[null,null,null,null,"カンムリワシ","Spilornis cheela"]
[null,null,null,null,"ヨーロッパチュウヒ","Circus aeruginosus"]
[null,null,null,null,"チュウヒ","Circus spilonotus"]
[null,null,null,null,"ハイイロチュウヒ","Circus cyaneus"]
[null,null,null,null,"ウスハイイロチュウヒ","Circus macrourus"]
[null,null,null,null,"マダラチュウヒ","Circus melanoleucos"]
[null,null,null,null,"アカハラダカ","Accipiter soloensis"]
[null,null,null,null,"ツミ","Accipiter gularis"]
[null,null,null,null,"ハイタカ","Accipiter nisus"]
[null,null,null,null,"オオタカ","Accipiter gentilis"]
[null,null,null,null,"サシバ","Butastur indicus"]
[null,null,null,null,"ノスリ","Buteo buteo"]
[null,null,null,null,"オオノスリ","Buteo hemilasius"]
[null,null,null,null,"ケアシノスリ","Buteo lagopus"]
[null,null,null,null,"カラフトワシ","Aquila clanga"]
[null,null,null,null,"カタシロワシ","Aquila heliaca"]
[null,null,null,null,"イヌワシ","Aquila chrysaetos"]
[null,null,null,null,"クマタカ","Nisaetus nipalensis"]
[null,null,null,null,"ヒガシメンフクロウ","Tyto longimembris"]
[null,null,null,null,"オオコノハズク","Otus lempiji"]
[null,null,null,null,"コノハズク","Otus sunia"]
[null,null,null,null,"リュウキュウコノハズク","Otus elegans"]
[null,null,null,null,"シロフクロウ","Bubo scandiacus"]
[null,null,null,null,"ワシミミズク","Bubo bubo"]
[null,null,null,null,"シマフクロウ","Ketupa blakistoni"]
[null,null,null,null,"フクロウ","Strix uralensis"]
[null,null,null,null,"キンメフクロウ","Aegolius funereus"]
[null,null,null,null,"アオバズク","Ninox scutulata"]
[null,null,null,null,"トラフズク","Asio otus"]
[null,null,null,null,"コミミズク","Asio flammeus"]
[null,null,null,null,"ヤツガシラ","Upupa epops"]
[null,null,null,null,"アカショウビン","Halcyon coromanda"]
[null,null,null,null,"アオショウビン","Halcyon smyrnensis"]
[null,null,null,null,"ヤマショウビン","Halcyon pileata"]
[null,null,null,null,"ナンヨウショウビン","Todiramphus chloris"]
[null,null,null,null,"ミヤコショウビン","Todiramphus miyakoensis"]
[null,null,null,null,"カワセミ","Alcedo atthis"]
[null,null,null,null,"ミツユビカワセミ","Ceyx erithaca"]
[null,null,null,null,"ヤマセミ","Megaceryle lugubris"]
[null,null,null,null,"ハチクイ","Merops ornatus"]
[null,null,null,null,"ブッポウソウ","Eurystomus orientalis"]
[null,null,null,null,"アリスイ","Jynx torquilla"]
[null,null,null,null,"チャバラアカゲラ","Dendrocopos hyperythrus"]
[null,null,null,null,"コゲラ","Dendrocopos kizuki"]
[null,null,null,null,"コアカゲラ","Dendrocopos minor"]
[null,null,null,null,"オオアカゲラ","Dendrocopos leucotos"]
[null,null,null,null,"オーストンオオアカゲラ"]
[null,null,null,null,"アカゲラ","Dendrocopos major"]
[null,null,null,null,"ミユビゲラ","Picoides tridactylus"]
[null,null,null,null,"キタタキ","Dryocopus javensis"]
[null,null,null,null,"クマゲラ","Dryocopus martius"]
[null,null,null,null,"アオゲラ","Picus awokera"]
[null,null,null,null,"ヤマゲラ","Picus canus"]
[null,null,null,null,"ノグチゲラ","Sapheopipo noguchii"]
[null,null,null,null,"ヒメチョウゲンボウ","Falco naumanni"]
[null,null,null,null,"チョウゲンボウ","Falco tinnunculus"]
[null,null,null,null,"アカアシチョウゲンボウ","Falco amurensis"]
[null,null,null,null,"コチョウゲンボウ","Falco columbarius"]
[null,null,null,null,"チゴハヤブサ","Falco subbuteo"]
[null,null,null,null,"ワキスジハヤブサ","Falco cherrug"]
[null,null,null,null,"シロハヤブサ","Falco rusticolus"]
[null,null,null,null,"ハヤブサ","Falco peregrinus"]
[null,null,null,null,"ズグロヤイロチョウ","Pitta sordida"]
[null,null,null,null,"ヤイロチョウ","Pitta nympha"]
[null,null,null,null,"モリツバメ","Artamus leucorynchus"]
[null,null,null,null,"アサクラサンショウクイ","Coracina melaschistos"]
[null,null,null,null,"サンショウクイ","Pericrocotus divaricatus"]
[null,null,null,null,"リュウキュウサンショウクイ","Pericrocotus divaricatus tegimae"]
[null,null,null,null,"コウライウグイス","Oriolus chinensis"]
[null,null,null,null,"オウチュウ","Dicrurus macrocercus"]
[null,null,null,null,"ハイイロオウチュウ","Dicrurus leucophaeus"]
[null,null,null,null,"カンムリオウチュウ","Dicrurus hottentottus"]
[null,null,null,null,"クロエリヒタキ","Hypothymis azurea"]
[null,null,null,null,"サンコウチョウ","Terpsiphone atrocaudata"]
[null,null,null,null,"チゴモズ","Lanius tigrinus"]
[null,null,null,null,"モズ","Lanius bucephalus"]
[null,null,null,null,"アカモズ","Lanius cristatus"]
[null,null,null,null,"セアカモズ","Lanius collurio"]
[null,null,null,null,"モウコアカモズ","Lanius isabellinus"]
[null,null,null,null,"タカサゴモズ","Lanius schach"]
[null,null,null,null,"オオモズ","Lanius excubitor"]
[null,null,null,null,"オオカラモズ","Lanius sphenocercus"]
[null,null,null,null,"カケス","Garrulus glandarius"]
[null,null,null,null,"ミヤマカケス","Garrulus glandarius brandtii"]
[null,null,null,null,"ルリカケス","Garrulus lidthi"]
[null,null,null,null,"オナガ","Cyanopica cyanus"]
[null,null,null,null,"カササギ","Pica pica"]
[null,null,null,null,"ホシガラス","Nucifraga caryocatactes"]
[null,null,null,null,"ニシコクマルガラス","Corvus monedula"]
[null,null,null,null,"コクマルガラス","Corvus dauuricus"]
[null,null,null,null,"ミヤマガラス","Corvus frugilegus"]
[null,null,null,null,"ハシボソガラス","Corvus corone"]
[null,null,null,null,"ハシブトガラス","Corvus macrorhynchos"]
[null,null,null,null,"ワタリガラス","Corvus corax"]
[null,null,null,null,"キクイタダキ","Regulus regulus"]
[null,null,null,null,"ツリスガラ","Remiz pendulinus"]
[null,null,null,null,"ハシブトガラ","Poecile palustris"]
[null,null,null,null,"コガラ","Poecile montanus"]
[null,null,null,null,"ヤマガラ","Poecile varius"]
[null,null,null,null,"オーストンヤマガラ"]
[null,null,null,null,"ヒガラ","Periparus ater"]
[null,null,null,null,"キバラガラ","Periparus venustulus"]
[null,null,null,null,"シジュウカラ","Parus minor"]
[null,null,null,null,"ルリガラ","Cyanistes cyanus"]
[null,null,null,null,"ヒゲガラ","Panurus biarmicus"]
[null,null,null,null,"クビワコウテンシ","Melanocorypha bimaculata"]
[null,null,null,null,"コウテンシ","Melanocorypha mongolica"]
[null,null,null,null,"ヒメコウテンシ","Calandrella brachydactyla"]
[null,null,null,null,"コヒバリ","Calandrella cheleensis"]
[null,null,null,null,"ヒバリ","Alauda arvensis"]
[null,null,null,null,"ハマヒバリ","Eremophila alpestris"]
[null,null,null,null,"タイワンショウドウツバメ","Riparia paludicola"]
[null,null,null,null,"ショウドウツバメ","Riparia riparia"]
[null,null,null,null,"ミドリツバメ","Tachycineta bicolor"]
[null,null,null,null,"ツバメ","Hirundo rustica"]
[null,null,null,null,"リュウキュウツバメ","Hirundo tahitica"]
[null,null,null,null,"コシアカツバメ","Hirundo daurica"]
[null,null,null,null,"ニシイワツバメ","Delichon urbicum"]
[null,null,null,null,"イワツバメ","Delichon dasypus"]
[null,null,null,null,"シロガシラ","Pycnonotus sinensis"]
[null,null,null,null,"ヒヨドリ","Hypsipetes amaurotis"]
[null,null,null,null,"ウグイス","Cettia diphone"]
[null,null,null,null,"ヤブサメ","Urosphena squameiceps"]
[null,null,null,null,"エナガ","Aegithalos caudatus"]
[null,null,null,null,"シマエナガ","Aegithalos caudatus japonicus"]
[null,null,null,null,"キタヤナギムシクイ","Phylloscopus trochilus"]
[null,null,null,null,"チフチャフ","Phylloscopus collybita"]
[null,null,null,null,"モリムシクイ","Phylloscopus sibilatrix"]
[null,null,null,null,"ムジセッカ","Phylloscopus fuscatus"]
[null,null,null,null,"キバラムシクイ","Phylloscopus affinis"]
[null,null,null,null,"カラフトムジセッカ","Phylloscopus schwarzi"]
[null,null,null,null,"カラフトムシクイ","Phylloscopus proregulus"]
[null,null,null,null,"キマユムシクイ","Phylloscopus inornatus"]
[null,null,null,null,"コムシクイ","Phylloscopus borealis"]
[null,null,null,null,"オオムシクイ","Phylloscopus examinandus"]
[null,null,null,null,"メボソムシクイ","Phylloscopus xanthodryas"]
[null,null,null,null,"ヤナギムシクイ","Phylloscopus plumbeitarsus"]
[null,null,null,null,"エゾムシクイ","Phylloscopus borealoides"]
[null,null,null,null,"センダイムシクイ","Phylloscopus coronatus"]
[null,null,null,null,"イイジマムシクイ","Phylloscopus ijimae"]
[null,null,null,null,"コノドジロムシクイ","Sylvia curruca"]
[null,null,null,null,"メグロ","Apalopteron familiare"]
[null,null,null,null,"チョウセンメジロ","Zosterops erythropleurus"]
[null,null,null,null,"メジロ","Zosterops japonicus"]
[null,null,null,null,"マキノセンニュウ","Locustella lanceolata"]
[null,null,null,null,"シマセンニュウ","Locustella ochotensis"]
[null,null,null,null,"ウチヤマセンニュウ","Locustella pleskei"]
[null,null,null,null,"シベリアセンニュウ","Locustella certhiola"]
[null,null,null,null,"オオセッカ","Locustella pryeri"]
[null,null,null,null,"エゾセンニュウ","Locustella fasciolata"]
[null,null,null,null,"オオヨシキリ","Acrocephalus orientalis"]
[null,null,null,null,"コヨシキリ","Acrocephalus bistrigiceps"]
[null,null,null,null,"セスジコヨシキリ","Acrocephalus sorghophilus"]
[null,null,null,null,"イナダヨシキリ","Acrocephalus agricola"]
[null,null,null,null,"ヤブヨシキリ","Acrocephalus dumetorum"]
[null,null,null,null,"ハシブトオオヨシキリ","Acrocephalus aedon"]
[null,null,null,null,"ヒメウタイムシクイ","Iduna caligata"]
[null,null,null,null,"セッカ","Cisticola juncidis"]
[null,null,null,null,"キレンジャク","Bombycilla garrulus"]
[null,null,null,null,"ヒレンジャク","Bombycilla japonica"]
[null,null,null,null,"ゴジュウカラ","Sitta europaea"]
[null,null,null,null,"キバシリ","Certhia familiaris"]
[null,null,null,null,"ミソサザイ","Troglodytes troglodytes"]
[null,null,null,null,"ギンムクドリ","Spodiopsar sericeus"]
[null,null,null,null,"ムクドリ","Spodiopsar cineraceus"]
[null,null,null,null,"シベリアムクドリ","Agropsar sturninus"]
[null,null,null,null,"コムクドリ","Agropsar philippensis"]
[null,null,null,null,"カラムクドリ","Sturnia sinensis"]
[null,null,null,null,"バライロムクドリ","Pastor roseus"]
[null,null,null,null,"ホシムクドリ","Sturnus vulgaris"]
[null,null,null,null,"カワガラス","Cinclus pallasii"]
[null,null,null,null,"マミジロ","Zoothera sibirica"]
[null,null,null,null,"オオトラツグミ"]
[null,null,null,null,"トラツグミ","Zoothera dauma"]
[null,null,null,null,"オガサワラガビチョウ","Cichlopasser terrestris"]
[null,null,null,null,"ハイイロチャツグミ","Catharus minimus"]
[null,null,null,null,"カラアカハラ","Turdus hortulorum"]
[null,null,null,null,"クロツグミ","Turdus cardis"]
[null,null,null,null,"クロウタドリ","Turdus merula"]
[null,null,null,null,"マミチャジナイ","Turdus obscurus"]
[null,null,null,null,"シロハラ","Turdus pallidus"]
[null,null,null,null,"アカハラ","Turdus chrysolaus"]
[null,null,null,null,"アカコッコ","Turdus celaenops"]
[null,null,null,null,"ノドグロツグミ","Turdus ruficollis"]
[null,null,null,null,"ツグミ","Turdus naumanni"]
[null,null,null,null,"ハチジョウツグミ"]
[null,null,null,null,"ノハラツグミ","Turdus pilaris"]
[null,null,null,null,"ワキアカツグミ","Turdus iliacus"]
[null,null,null,null,"ヤドリギツグミ","Turdus viscivorus"]
[null,null,null,null,"ヨーロッパコマドリ","Erithacus rubecula"]
[null,null,null,null,"コマドリ","Luscinia akahige"]
[null,null,null,null,"アカヒゲ","Luscinia komadori"]
[null,null,null,null,"オガワコマドリ","Luscinia svecica"]
[null,null,null,null,"ノゴマ","Luscinia calliope"]
[null,null,null,null,"コルリ","Luscinia cyane"]
[null,null,null,null,"シマゴマ","Luscinia sibilans"]
[null,null,null,null,"ルリビタキ","Tarsiger cyanurus"]
[null,null,null,null,"セアカジョウビタキ","Phoenicurus erythronotus"]
[null,null,null,null,"クロジョウビタキ","Phoenicurus ochruros"]
[null,null,null,null,"シロビタイジョウビタキ","Phoenicurus phoenicurus"]
[null,null,null,null,"ジョウビタキ","Phoenicurus auroreus"]
[null,null,null,null,"マミジロノビタキ","Saxicola rubetra"]
[null,null,null,null,"ノビタキ","Saxicola torquatus"]
[null,null,null,null,"クロノビタキ","Saxicola caprata"]
[null,null,null,null,"ヤマザキヒタキ","Saxicola ferreus"]
[null,null,null,null,"イナバヒタキ","Oenanthe isabellina"]
[null,null,null,null,"ハシグロヒタキ","Oenanthe oenanthe"]
[null,null,null,null,"セグロサバクヒタキ","Oenanthe pleschanka"]
[null,null,null,null,"サバクヒタキ","Oenanthe deserti"]
[null,null,null,null,"イソヒヨドリ","Monticola solitarius"]
[null,null,null,null,"ヒメイソヒヨ","Monticola gularis"]
[null,null,null,null,"ムナフヒタキ","Muscicapa striata"]
[null,null,null,null,"エゾビタキ","Muscicapa griseisticta"]
[null,null,null,null,"サメビタキ","Muscicapa sibirica"]
[null,null,null,null,"コサメビタキ","Muscicapa dauurica"]
[null,null,null,null,"ミヤマヒタキ","Muscicapa ferruginea"]
[null,null,null,null,"マダラヒタキ","Ficedula hypoleuca"]
[null,null,null,null,"マミジロキビタキ","Ficedula zanthopygia"]
[null,null,null,null,"キビタキ","Ficedula narcissina"]
[null,null,null,null,"ムギマキ","Ficedula mugimaki"]
[null,null,null,null,"オジロビタキ","Ficedula albicilla"]
[null,null,null,null,"オオルリ","Cyanoptila cyanomelana"]
[null,null,null,null,"ロクショウヒタキ","Eumyias thalassinus"]
[null,null,null,null,"チャバラオオルリ","Niltava vivida"]
[null,null,null,null,"イワヒバリ","Prunella collaris"]
[null,null,null,null,"ヤマヒバリ","Prunella montanella"]
[null,null,null,null,"カヤクグリ","Prunella rubida"]
[null,null,null,null,"イエスズメ","Passer domesticus"]
[null,null,null,null,"ニュウナイスズメ","Passer rutilans"]
[null,null,null,null,"スズメ","Passer montanus"]
[null,null,null,null,"イワミセキレイ","Dendronanthus indicus"]
[null,null,null,null,"ツメナガセキレイ","Motacilla flava"]
[null,null,null,null,"キガシラセキレイ","Motacilla citreola"]
[null,null,null,null,"キセキレイ","Motacilla cinerea"]
[null,null,null,null,"ハクセキレイ","Motacilla alba"]
[null,null,null,null,"ホオジロハクセキレイ"]
[null,null,null,null,"セグロセキレイ","Motacilla grandis"]
[null,null,null,null,"マミジロタヒバリ","Anthus richardi"]
[null,null,null,null,"コマミジロタヒバリ","Anthus godlewskii"]
[null,null,null,null,"マキバタヒバリ","Anthus pratensis"]
[null,null,null,null,"ヨーロッパビンズイ","Anthus trivialis"]
[null,null,null,null,"ビンズイ","Anthus hodgsoni"]
[null,null,null,null,"セジロタヒバリ","Anthus gustavi"]
[null,null,null,null,"ウスベニタヒバリ","Anthus roseatus"]
[null,null,null,null,"ムネアカタヒバリ","Anthus cervinus"]
[null,null,null,null,"タヒバリ","Anthus rubescens"]
[null,null,null,null,"ズアオアトリ","Fringilla coelebs"]
[null,null,null,null,"アトリ","Fringilla montifringilla"]
[null,null,null,null,"カワラヒワ","Chloris sinica"]
[null,null,null,null,"マヒワ","Carduelis spinus"]
[null,null,null,null,"ベニヒワ","Carduelis flammea"]
[null,null,null,null,"コベニヒワ","Carduelis hornemanni"]
[null,null,null,null,"ハギマシコ","Leucosticte arctoa"]
[null,null,null,null,"ベニマシコ","Uragus sibiricus"]
[null,null,null,null,"オガサワラマシコ","Chaunoproctus ferreorostris"]
[null,null,null,null,"アカマシコ","Carpodacus erythrinus"]
[null,null,null,null,"オオマシコ","Carpodacus roseus"]
[null,null,null,null,"ギンザンマシコ","Pinicola enucleator"]
[null,null,null,null,"イスカ","Loxia curvirostra"]
[null,null,null,null,"ナキイスカ","Loxia leucoptera"]
[null,null,null,null,"ウソ","Pyrrhula pyrrhula"]
[null,null,null,null,"シメ","Coccothraustes coccothraustes"]
[null,null,null,null,"コイカル","Eophona migratoria"]
[null,null,null,null,"イカル","Eophona personata"]
[null,null,null,null,"ツメナガホオジロ","Calcarius lapponicus"]
[null,null,null,null,"ユキホオジロ","Plectrophenax nivalis"]
[null,null,null,null,"キヅタアメリカムシクイ","Setophaga coronata"]
[null,null,null,null,"ウィルソンアメリカムシクイ","Cardellina pusilla"]
[null,null,null,null,"レンジャクノジコ","Emberiza lathami"]
[null,null,null,null,"キアオジ","Emberiza citrinella"]
[null,null,null,null,"シラガホオジロ","Emberiza leucocephalos"]
[null,null,null,null,"ホオジロ","Emberiza cioides"]
[null,null,null,null,"イワバホオジロ","Emberiza buchanani"]
[null,null,null,null,"ズアオホオジロ","Emberiza hortulana"]
[null,null,null,null,"シロハラホオジロ","Emberiza tristrami"]
[null,null,null,null,"ホオアカ","Emberiza fucata"]
[null,null,null,null,"コホオアカ","Emberiza pusilla"]
[null,null,null,null,"キマユホオジロ","Emberiza chrysophrys"]
[null,null,null,null,"カシラダカ","Emberiza rustica"]
[null,null,null,null,"ミヤマホオジロ","Emberiza elegans"]
[null,null,null,null,"シマアオジ","Emberiza aureola"]
[null,null,null,null,"シマノジコ","Emberiza rutila"]
[null,null,null,null,"ズグロチャキンチョウ","Emberiza melanocephala"]
[null,null,null,null,"チャキンチョウ","Emberiza bruniceps"]
[null,null,null,null,"ノジコ","Emberiza sulphurata"]
[null,null,null,null,"アオジ","Emberiza spodocephala"]
[null,null,null,null,"クロジ","Emberiza variabilis"]
[null,null,null,null,"シベリアジュリン","Emberiza pallasi"]
[null,null,null,null,"コジュリン","Emberiza yessoensis"]
[null,null,null,null,"オオジュリン","Emberiza schoeniclus"]
[null,null,null,null,"ゴマフスズメ","Passerella iliaca"]
[null,null,null,null,"ウタスズメ","Melospiza melodia"]
[null,null,null,null,"ミヤマシトド","Zonotrichia leucophrys"]
[null,null,null,null,"キガシラシトド","Zonotrichia atricapilla"]
[null,null,null,null,"サバンナシトド","Passerculus sandwichensis"]
[null,null,null,null,"コジュケイ"]
[null,null,null,null,"ニワトリ"]
[null,null,null,null,"インドクジャク"]
[null,null,null,null,"コリンウズラ"]
[null,null,null,null,"オオカナダガン"]
[null,null,null,null,"ガチョウ"]
[null,null,null,null,"アヒル"]
[null,null,null,null,"バリケン"]
[null,null,null,null,"コクチョウ"]
[null,null,null,null,"コブハクチョウ"]
[null,null,null,null,"カワラバト"]
[null,null,null,null,"ドバト"]
[null,null,null,null,"セキセイインコ"]
[null,null,null,null,"オオホンセイインコ"]
[null,null,null,null,"ホンセイインコ"]
[null,null,null,null,"ダルマインコ"]
[null,null,null,null,"オキナインコ"]
[null,null,null,null,"ヤマムスメ"]
[null,null,null,null,"ガビチョウ"]
[null,null,null,null,"ヒゲガビチョウ"]
[null,null,null,null,"カオグロガビチョウ"]
[null,null,null,null,"カオジロガビチョウ"]
[null,null,null,null,"ソウシチョウ"]
[null,null,null,null,"ハッカチョウ"]
[null,null,null,null,"モリハッカ"]
[null,null,null,null,"ハイイロハッカ"]
[null,null,null,null,"インドハッカ"]
[null,null,null,null,"ホオジロムクドリ"]
[null,null,null,null,"メンハタオリドリ"]
[null,null,null,null,"オオキンランチョウ"]
[null,null,null,null,"ホオアカカエデチョウ"]
[null,null,null,null,"カエデチョウ"]
[null,null,null,null,"ベニスズメ"]
[null,null,null,null,"コシジロキンパラ"]
[null,null,null,null,"シマキンパラ"]
[null,null,null,null,"ギンパラ"]
[null,null,null,null,"キンパラ"]
[null,null,null,null,"ヘキチョウ"]
[null,null,null,null,"ブンチョウ"]
[null,null,null,null,"ホウオウジャク"]
[null,null,null,null,"コウカンチョウ"]
[null,null,null,null,"カモ類"]
[null,null,null,null,"ガン類"]
[null,null,null,null,"ハクチョウ類"]
[null,null,null,null,"アイサ類"]
[null,null,null,null,"カイツブリ類"]
[null,null,null,null,"アビ類"]
[null,null,null,null,"ミズナギドリ類"]
[null,null,null,null,"ウミツバメ類"]
[null,null,null,null,"ウ類"]
[null,null,null,null,"サギ類"]
[null,null,null,null,"クイナ類"]
[null,null,null,null,"カッコウ類"]
[null,null,null,null,"アマツバメ類"]
[null,null,null,null,"チドリ類"]
[null,null,null,null,"シギ類"]
[null,null,null,null,"ジシギ類"]
[null,null,null,null,"カモメ類"]
[null,null,null,null,"アジサシ類"]
[null,null,null,null,"タカ類"]
[null,null,null,null,"ハイタカ類"]
[null,null,null,null,"フクロウ類"]
[null,null,null,null,"キツツキ類"]
[null,null,null,null,"モズ類"]
[null,null,null,null,"カラ類"]
[null,null,null,null,"ムシクイ類"]
[null,null,null,null,"ヒタキ類"]
[null,null,null,null,"大型ツグミ類"]
[null,null,null,null,"ホオジロ類"]
[null,null,null,null,"セキレイ類"]
[null,null,null,null,"アトリ類"]
[null,null,null,null,"ヒワ類"]
[null,null,null,null,"カラス類"]
[null,null,null,null,"その他"]

{"sheet":"Sheet3","index":5,"n_rows":0,"n_cols":0,"rows_kept":0,"cut":false,"hidden":false,"merged":[]}